account_party,address,code,date,document_number,expense_code_name,expense_code_name_short,id,party_cell,party_cell_code,party_cell_geoobject,purpose,source_bank_account_number,source_bank_account_type,sum,target_legal_personality,target_legal_personality_code,target_type
ВОЛЯ,"м. Київ, вул. Кирилівська, буд. 102",60,2019-12-04,183,Інші податки,Податкові платежі,364085,Центральний офіс,37413211,Україна,За обробку даних для видачi сертифiкатiв ЕП,26003052628485,current,331.00,"ТОВ ""Центр сертифікації ключів ""Україна""",36865753,юридична особа
ВОЛЯ,"м. Київ, вул. Грушевського, буд. 1Д",70,2019-12-02,AS9btk7iyp,Банківські послуги,Інші витрати,364084,Центральний офіс,37413211,Україна,Комісія банку,26003052628485,current,100.00,"ПАТ КБ ""Приватбанк""",14360570,юридична особа
ВОЛЯ,"м. Київ, вул. Володимирська, буд. 69А",70,2019-11-29,TZ009B3EI4,Банківські послуги,Інші витрати,364083,Центральний офіс,37413211,Україна,Комісія банку,26003052628485,current,38.13,УДКСУ у Голосіївському районі м. Києва,38039757,юридична особа
ВОЛЯ,"м. Київ, вул. Володимирська, буд. 69А",70,2019-11-29,BTO2RVU5EY,Банківські послуги,Інші витрати,364082,Центральний офіс,37413211,Україна,Комісія банку,26003052628485,current,3.00,УДКСУ у Голосіївському районі м. Києва,38039757,юридична особа
ВОЛЯ,"м. Київ, вул. Володимирська, буд. 69А",70,2019-11-29,BTO2RVU5BY,Банківські послуги,Інші витрати,364081,Центральний офіс,37413211,Україна,Комісія банку,26003052628485,current,3.00,УДКСУ у Голосіївському районі м. Києва,38039757,юридична особа
ВОЛЯ,"м. Київ, вул. Володимирська, буд. 69А",70,2019-11-29,BTO2RVU55Y,Банківські послуги,Інші витрати,364080,Центральний офіс,37413211,Україна,Комісія банку,26003052628485,current,3.00,УДКСУ у Голосіївському районі м. Києва,38039757,юридична особа
ВОЛЯ,"м. Київ, вул. Володимирська, буд. 69А",61,2019-11-29,182,Військовий збір,Податкові платежі,364079,Центральний офіс,37413211,Україна,Військ.збір ЗП 11/2019,26003052628485,current,52.58,УДКСУ у Голосіївському районі м. Києва,38039757,юридична особа
ВОЛЯ,"м. Київ, вул. Володимирська, буд. 69А",63,2019-11-29,180,Податок на доходи,Податкові платежі,364078,Центральний офіс,37413211,Україна,ПДФО ЗП 11/2019,26003052628485,current,630.96,УДКСУ у Голосіївському районі м. Києва,38039757,юридична особа
ВОЛЯ,"м. Київ, вул. Жилянська, буд. 23",62,2019-11-29,181,Сплата ЄСВ,Податкові платежі,364077,Центральний офіс,37413211,Україна,ЕСВ 22 %ЗП 11/2019,26003052628485,current,771.17,ДПІ у Голосіївському районі м. Києва,39468461,юридична особа
ВОЛЯ,м. Стаханiв,84,2019-11-29,191129СТ914123,"Заробітна плата, премії","Заробітна плата, лікарняні, вагітності, відрядження, компенсації",364027,Центральний офіс,37413211,Україна,Заробітна плата за 11/2019,26003052628485,current,1.66,Земськов Антон Володимирович,,фізична особа
ВОЛЯ,м. Чернігів,84,2019-11-29,191129СТ914123,"Заробітна плата, премії","Заробітна плата, лікарняні, вагітності, відрядження, компенсації",364026,Центральний офіс,37413211,Україна,Заробітна плата за 11/2019,26003052628485,current,1.16,Ступак Володимир Федорович,,фізична особа
ВОЛЯ,"м. Київ, вул. Володимирська, буд. 69А",70,2019-11-28,BSO2RRIJWY,Банківські послуги,Інші витрати,364076,Центральний офіс,37413211,Україна,Комісія банку,26003052628485,current,3.00,УДКСУ у Голосіївському районі м. Києва,38039757,юридична особа
ВОЛЯ,"м. Київ, вул. Володимирська, буд. 69А",70,2019-11-28,BSO2RRIJTY,Банківські послуги,Інші витрати,364075,Центральний офіс,37413211,Україна,Комісія банку,26003052628485,current,3.00,УДКСУ у Голосіївському районі м. Києва,38039757,юридична особа
ВОЛЯ,"м. Київ, вул. Володимирська, буд. 69А",70,2019-11-28,BSO2RRIK4Y,Банківські послуги,Інші витрати,364074,Центральний офіс,37413211,Україна,Комісія банку,26003052628485,current,3.00,УДКСУ у Голосіївському районі м. Києва,38039757,юридична особа
ВОЛЯ,"м. Київ, вул. Володимирська, буд. 69А",61,2019-11-28,176,Військовий збір,Податкові платежі,364073,Центральний офіс,37413211,Україна,Військ.збір ЗП відпускні,26003052628485,current,231678.00,УДКСУ у Голосіївському районі м. Києва,38039757,юридична особа
ВОЛЯ,"м. Київ, вул. Володимирська, буд. 69А",63,2019-11-28,177,Податок на доходи,Податкові платежі,364072,Центральний офіс,37413211,Україна,ПДФО ЗП відпускні,26003052628485,current,2780.13,УДКСУ у Голосіївському районі м. Києва,38039757,юридична особа
ВОЛЯ,"м. Київ, вул. Жилянська, буд. 23",62,2019-11-28,178,Сплата ЄСВ,Податкові платежі,364071,Центральний офіс,37413211,Україна,ЕСВ 22 %ЗП відпускні,26003052628485,current,3397.93,ДПІ у Голосіївському районі м. Києва,39468461,юридична особа
ВОЛЯ,м. Стаханiв,83,2019-11-28,191128СТ887611,"Виплати працівникам (не зарплата): лікарняні, вагітності, відрядження, компенсації ","Заробітна плата, лікарняні, вагітності, відрядження, компенсації",364025,Центральний офіс,37413211,Україна,Відпускні нараховані за 12/2019,26003052628485,current,2.54,Земськов Антон Володимирович,,фізична особа
ВОЛЯ,м. Чернігів,83,2019-11-28,191128СТ887611,"Виплати працівникам (не зарплата): лікарняні, вагітності, відрядження, компенсації ","Заробітна плата, лікарняні, вагітності, відрядження, компенсації",364024,Центральний офіс,37413211,Україна,Відпускні нараховані за 12/2019,26003052628485,current,9.89,Ступак Володимир Федорович,,фізична особа
ВОЛЯ,"м. Київ, вул. Володимирська, буд. 69А",70,2019-11-26,TZ006B2DCC,Банківські послуги,Інші витрати,364070,Центральний офіс,37413211,Україна,Комісія банку,26003052628485,current,41653.00,УДКСУ у Голосіївському районі м. Києва,38039757,юридична особа
ВОЛЯ,"м. Київ, вул. Володимирська, буд. 69А",70,2019-11-26,BQO2RHN0VY,Банківські послуги,Інші витрати,364069,Центральний офіс,37413211,Україна,Комісія банку,26003052628485,current,3.00,УДКСУ у Голосіївському районі м. Києва,38039757,юридична особа
ВОЛЯ,"м. Київ, вул. Володимирська, буд. 69А",70,2019-11-26,BQO2RHN0UY,Банківські послуги,Інші витрати,364068,Центральний офіс,37413211,Україна,Комісія банку,26003052628485,current,3.00,УДКСУ у Голосіївському районі м. Києва,38039757,юридична особа
ВОЛЯ,"м. Київ, вул. Володимирська, буд. 69А",70,2019-11-26,BQO2RHN0SY,Банківські послуги,Інші витрати,364067,Центральний офіс,37413211,Україна,Комісія банку,26003052628485,current,3.00,УДКСУ у Голосіївському районі м. Києва,38039757,юридична особа
ВОЛЯ,"м. Київ, вул. Володимирська, буд. 69А",61,2019-11-26,168,Військовий збір,Податкові платежі,364066,Центральний офіс,37413211,Україна,Військ.збір ЗП відпускні,26003052628485,current,120.04,УДКСУ у Голосіївському районі м. Києва,38039757,юридична особа
ВОЛЯ,"м. Київ, вул. Володимирська, буд. 69А",63,2019-11-26,169,Податок на доходи,Податкові платежі,364065,Центральний офіс,37413211,Україна,ПДФО ЗП відпускні,26003052628485,current,1440.50,УДКСУ у Голосіївському районі м. Києва,38039757,юридична особа
ВОЛЯ,"м. Київ, вул. Жилянська, буд. 23",62,2019-11-26,170,Сплата ЄСВ,Податкові платежі,364064,Центральний офіс,37413211,Україна,ЕСВ 22 %ЗП відпускні,26003052628485,current,1760.62,ДПІ у Голосіївському районі м. Києва,39468461,юридична особа
ВОЛЯ,м. Київ,83,2019-11-26,191126СТ832074,"Виплати працівникам (не зарплата): лікарняні, вагітності, відрядження, компенсації ","Заробітна плата, лікарняні, вагітності, відрядження, компенсації",364023,Центральний офіс,37413211,Україна,Відпускні нараховані за 12/2019,26003052628485,current,6.44,Ліфар Наталія Володимирівна,,фізична особа
ВОЛЯ,"м. Київ, вул. Володимирська, буд. 69А",70,2019-11-25,BPO2RDMG1Y,Банківські послуги,Інші витрати,364063,Центральний офіс,37413211,Україна,Комісія банку,26003052628485,current,3.00,УДКСУ у Голосіївському районі м. Києва,38039757,юридична особа
ВОЛЯ,"м. Київ, вул. Володимирська, буд. 69А",70,2019-11-25,BPO2RDMFWY,Банківські послуги,Інші витрати,364062,Центральний офіс,37413211,Україна,Комісія банку,26003052628485,current,3.00,УДКСУ у Голосіївському районі м. Києва,38039757,юридична особа
ВОЛЯ,"м. Київ, вул. Володимирська, буд. 69А",70,2019-11-25,BPO2RDMFUY,Банківські послуги,Інші витрати,364061,Центральний офіс,37413211,Україна,Комісія банку,26003052628485,current,3.00,УДКСУ у Голосіївському районі м. Києва,38039757,юридична особа
ВОЛЯ,"м. Київ, вул. Володимирська, буд. 69А",61,2019-11-25,172,Військовий збір,Податкові платежі,364060,Центральний офіс,37413211,Україна,Військ.збір ЗП 11/2019 аванс,26003052628485,current,173.80,УДКСУ у Голосіївському районі м. Києва,38039757,юридична особа
ВОЛЯ,"м. Київ, вул. Володимирська, буд. 69А",63,2019-11-25,174,Податок на доходи,Податкові платежі,364059,Центральний офіс,37413211,Україна,ПДФО ЗП 11/2019 аванс,26003052628485,current,2085.64,УДКСУ у Голосіївському районі м. Києва,38039757,юридична особа
ВОЛЯ,"м. Київ, вул. Жилянська, буд. 23",62,2019-11-25,173,Сплата ЄСВ,Податкові платежі,364058,Центральний офіс,37413211,Україна,ЕСВ 22 %ЗП 011/2019 аванс,26003052628485,current,2744.73,ДПІ у Голосіївському районі м. Києва,39468461,юридична особа
ВОЛЯ,"м. Київ, вул. Володимирська, буд. 69А",70,2019-11-25,BPO2RDGW0Y,Банківські послуги,Інші витрати,364057,Центральний офіс,37413211,Україна,Комісія банку,26003052628485,current,3.00,УДКСУ у Голосіївському районі м. Києва,38039757,юридична особа
ВОЛЯ,"м. Київ, вул. Потапова, буд. 4, оф. 106",76,2019-11-25,166,Послуги зв’язку,Послуги зв’язку,364056,Центральний офіс,37413211,Україна,Послуги інтернет,26003052628485,current,636.10,"ТОВ ""УТЕЛС",38590278,юридична особа
ВОЛЯ,м. Київ,84,2019-11-25,191125СТ815339,"Заробітна плата, премії","Заробітна плата, лікарняні, вагітності, відрядження, компенсації",364022,Центральний офіс,37413211,Україна,Заробітна плата за 11/2019 аванс,26003052628485,current,3.22,Ліфар Наталія Володимирівна,,фізична особа
ВОЛЯ,м. Чернігів,84,2019-11-25,191125СТ815339,"Заробітна плата, премії","Заробітна плата, лікарняні, вагітності, відрядження, компенсації",364021,Центральний офіс,37413211,Україна,Заробітна плата за 11/2019 аванс,26003052628485,current,5.23,Ступак Володимир Федорович,,фізична особа
ВОЛЯ,м. Стаханiв,84,2019-11-25,191125СТ815339,"Заробітна плата, премії","Заробітна плата, лікарняні, вагітності, відрядження, компенсації",364020,Центральний офіс,37413211,Україна,Заробітна плата за 11/2019 аванс,26003052628485,current,1.77,Земськов Антон Володимирович,,фізична особа
ВОЛЯ,"м. Київ, вул. Володимирська, буд. 69А",70,2019-11-12,TZ002BU9YP,Банківські послуги,Інші витрати,364055,Центральний офіс,37413211,Україна,Комісія банку,26003052628485,current,22.34,УДКСУ у Голосіївському районі м. Києва,38039757,юридична особа
ВОЛЯ,"м. Київ, вул. Володимирська, буд. 69А",70,2019-11-11,BBO2PJ4NKY,Банківські послуги,Інші витрати,364054,Центральний офіс,37413211,Україна,Комісія банку,26003052628485,current,3.00,УДКСУ у Голосіївському районі м. Києва,38039757,юридична особа
ВОЛЯ,"м. Київ, вул. Володимирська, буд. 69А",70,2019-11-11,BBO2PJ4DIY,Банківські послуги,Інші витрати,364053,Центральний офіс,37413211,Україна,Комісія банку,26003052628485,current,3.00,УДКСУ у Голосіївському районі м. Києва,38039757,юридична особа
ВОЛЯ,"м. Київ, вул. Володимирська, буд. 69А",70,2019-11-11,BBO2PJ4DHY,Банківські послуги,Інші витрати,364052,Центральний офіс,37413211,Україна,Комісія банку,26003052628485,current,3.00,УДКСУ у Голосіївському районі м. Києва,38039757,юридична особа
ВОЛЯ,"м. Київ, вул. Володимирська, буд. 69А",61,2019-11-11,168,Військовий збір,Податкові платежі,364051,Центральний офіс,37413211,Україна,Військ.збір ЗП відпускні,26003052628485,current,183.09,УДКСУ у Голосіївському районі м. Києва,38039757,юридична особа
ВОЛЯ,"м. Київ, вул. Володимирська, буд. 69А",63,2019-11-11,166,Податок на доходи,Податкові платежі,364050,Центральний офіс,37413211,Україна,ПДФО ЗП відпускні,26003052628485,current,2197.12,УДКСУ у Голосіївському районі м. Києва,38039757,юридична особа
ВОЛЯ,"м. Київ, вул. Жилянська, буд. 23",62,2019-11-11,167,Сплата ЄСВ,Податкові платежі,364049,Центральний офіс,37413211,Україна,ЕСВ 22 % відпускні,26003052628485,current,2489.75,ГУ ДФС у м. Києві,43141267,юридична особа
ВОЛЯ,м. Чернігів,83,2019-11-11,191111СТ523374,"Виплати працівникам (не зарплата): лікарняні, вагітності, відрядження, компенсації ","Заробітна плата, лікарняні, вагітності, відрядження, компенсації",364019,Центральний офіс,37413211,Україна,Відпускні нараховані за 11/2019,26003052628485,current,5.77,Ступак Володимир Федорович,,фізична особа
ВОЛЯ,м. Київ,83,2019-11-11,191111СТ523374,"Виплати працівникам (не зарплата): лікарняні, вагітності, відрядження, компенсації ","Заробітна плата, лікарняні, вагітності, відрядження, компенсації",364018,Центральний офіс,37413211,Україна,Відпускні нараховані за 11/2019,26003052628485,current,3.17,Ліфар Наталія Володимирівна,,фізична особа
ВОЛЯ,"м. Київ, вул. Грушевського, буд. 1Д",70,2019-11-01,AS9avg9ukp,Банківські послуги,Інші витрати,364048,Центральний офіс,37413211,Україна,Комісія банку,26003052628485,current,100.00,"ПАТ КБ ""Приватбанк""",14360570,юридична особа
ВОЛЯ,"м. Київ, вул. Володимирська, буд. 69А",70,2019-10-31,TZ001B7J6C,Банківські послуги,Інші витрати,364047,Центральний офіс,37413211,Україна,Комісія банку,26003052628485,current,31.95,УДКСУ у Голосіївському районі м. Києва,38039757,юридична особа
ВОЛЯ,"м. Київ, вул. Володимирська, буд. 69А",70,2019-10-31,AGO2MA3Q0Y,Банківські послуги,Інші витрати,364046,Центральний офіс,37413211,Україна,Комісія банку,26003052628485,current,3.00,УДКСУ у Голосіївському районі м. Києва,38039757,юридична особа
ВОЛЯ,"м. Київ, вул. Володимирська, буд. 69А",70,2019-10-31,AVO2O66RVY,Банківські послуги,Інші витрати,364045,Центральний офіс,37413211,Україна,Комісія банку,26003052628485,current,3.00,УДКСУ у Голосіївському районі м. Києва,38039757,юридична особа
ВОЛЯ,"м. Київ, вул. Володимирська, буд. 69А",70,2019-10-31,AVO2O66ROY,Банківські послуги,Інші витрати,364044,Центральний офіс,37413211,Україна,Комісія банку,26003052628485,current,3.00,УДКСУ у Голосіївському районі м. Києва,38039757,юридична особа
ВОЛЯ,"м. Київ, вул. Володимирська, буд. 69А",61,2019-10-31,162,Військовий збір,Податкові платежі,364043,Центральний офіс,37413211,Україна,Військ.збір ЗП 10/2019,26003052628485,current,238.13,УДКСУ у Голосіївському районі м. Києва,38039757,юридична особа
ВОЛЯ,"м. Київ, вул. Володимирська, буд. 69А",63,2019-10-31,163,Податок на доходи,Податкові платежі,364042,Центральний офіс,37413211,Україна,ПДФО ЗП 10/2019,26003052628485,current,2857.69,УДКСУ у Голосіївському районі м. Києва,38039757,юридична особа
ВОЛЯ,"м. Київ, вул. Жилянська, буд. 23",62,2019-10-31,164,Сплата ЄСВ,Податкові платежі,364041,Центральний офіс,37413211,Україна,ЕСВ 22 %ЗП 10/2019,26003052628485,current,3492.72,ГУ ДФС у м. Києві,43141267,юридична особа
ВОЛЯ,м. Київ,84,2019-10-31,190415СТ336140,"Заробітна плата, премії","Заробітна плата, лікарняні, вагітності, відрядження, компенсації",364017,Центральний офіс,37413211,Україна,Заробітна плата за 10/2019,26003052628485,current,4.18,Ліфар Наталія Володимирівна,,фізична особа
ВОЛЯ,м. Чернігів,84,2019-10-31,190415СТ336140,"Заробітна плата, премії","Заробітна плата, лікарняні, вагітності, відрядження, компенсації",364016,Центральний офіс,37413211,Україна,Заробітна плата за 10/2019,26003052628485,current,6.71,Ступак Володимир Федорович,,фізична особа
ВОЛЯ,м. Стаханiв,84,2019-10-31,190415СТ336140,"Заробітна плата, премії","Заробітна плата, лікарняні, вагітності, відрядження, компенсації",364015,Центральний офіс,37413211,Україна,Заробітна плата за 10/2019,26003052628485,current,1.89,Земськов Антон Володимирович,,фізична особа
ВОЛЯ,"м. Київ, вул. Володимирська, буд. 69А",70,2019-10-16,TZ006B39L,Банківські послуги,Інші витрати,364040,Центральний офіс,37413211,Україна,Комісія банку,26003052628485,current,24.88,УДКСУ у Голосіївському районі м. Києва,38039757,юридична особа
ВОЛЯ,"м. Київ, вул. Володимирська, буд. 69А",70,2019-10-16,AGO2MA3Q0Y,Банківські послуги,Інші витрати,364039,Центральний офіс,37413211,Україна,Комісія банку,26003052628485,current,3.00,УДКСУ у Голосіївському районі м. Києва,38039757,юридична особа
ВОЛЯ,"м. Київ, вул. Володимирська, буд. 69А",70,2019-10-16,AGO2MA3PQY,Банківські послуги,Інші витрати,364038,Центральний офіс,37413211,Україна,Комісія банку,26003052628485,current,3.00,УДКСУ у Голосіївському районі м. Києва,38039757,юридична особа
ВОЛЯ,"м. Київ, вул. Володимирська, буд. 69А",70,2019-10-16,AGO2MA3PU,Банківські послуги,Інші витрати,364037,Центральний офіс,37413211,Україна,Комісія банку,26003052628485,current,3.00,УДКСУ у Голосіївському районі м. Києва,38039757,юридична особа
ВОЛЯ,"м. Київ, вул. Володимирська, буд. 69А",61,2019-10-16,159,Військовий збір,Податкові платежі,364036,Центральний офіс,37413211,Україна,Військ.збір ЗП 10/2019 (аванс),26003052628485,current,185.46,УДКСУ у Голосіївському районі м. Києва,38039757,юридична особа
ВОЛЯ,"м. Київ, вул. Володимирська, буд. 69А",63,2019-10-16,158,Податок на доходи,Податкові платежі,364035,Центральний офіс,37413211,Україна,ПДФО ЗП 10/2019 (аванс),26003052628485,current,2225.45,УДКСУ у Голосіївському районі м. Києва,38039757,юридична особа
ВОЛЯ,"м. Київ, вул. Жилянська, буд. 23",62,2019-10-16,157,Сплата ЄСВ,Податкові платежі,364034,Центральний офіс,37413211,Україна,ЕСВ 22 %ЗП 10/2019 (аванс),26003052628485,current,2720.00,ГУ ДФС у м. Києві,43141267,юридична особа
ВОЛЯ,м. Київ,84,2019-10-16,190415СТ336140,"Заробітна плата, премії","Заробітна плата, лікарняні, вагітності, відрядження, компенсації",364014,Центральний офіс,37413211,Україна,Заробітна плата за 10/2019 (аванс),26003052628485,current,2.93,Ліфар Наталія Володимирівна,,фізична особа
ВОЛЯ,м. Чернігів,84,2019-10-16,190415СТ336140,"Заробітна плата, премії","Заробітна плата, лікарняні, вагітності, відрядження, компенсації",364013,Центральний офіс,37413211,Україна,Заробітна плата за 10/2019 (аванс),26003052628485,current,5.49,Ступак Володимир Федорович,,фізична особа
ВОЛЯ,м. Стаханiв,84,2019-10-16,190415СТ336140,"Заробітна плата, премії","Заробітна плата, лікарняні, вагітності, відрядження, компенсації",364012,Центральний офіс,37413211,Україна,Заробітна плата за 10/2019 (аванс),26003052628485,current,1.54,Земськов Антон Володимирович,,фізична особа
ВОЛЯ,"м. Київ, вул. Володимирська, буд. 69А",70,2019-10-15,AFO2M0Y9YY,Банківські послуги,Інші витрати,364033,Центральний офіс,37413211,Україна,Комісія банку,26003052628485,current,3.00,УДКСУ у Голосіївському районі м. Києва,38039757,юридична особа
ВОЛЯ,"м. Київ, вул. Володимирська, буд. 69А",70,2019-10-15,AFO2M0YA2Y,Банківські послуги,Інші витрати,364032,Центральний офіс,37413211,Україна,Комісія банку,26003052628485,current,3.00,УДКСУ у Голосіївському районі м. Києва,38039757,юридична особа
ВОЛЯ,"м. Київ, вул. Потапова, буд. 4, оф. 106",76,2019-10-15,156,Послуги зв’язку,Послуги зв’язку,364031,Центральний офіс,37413211,Україна,Послуги інтернет,26003052628485,current,1468.00,"ТОВ ""УТЕЛС",38590278,юридична особа
ВОЛЯ,"м. Київ, вул. Желябова, буд. 4",82,2019-10-15,155,"Гонорари, в тому числі за надані консультаційні послуги","Гонорари, в тому числі за надані консультаційні послуги",364030,Центральний офіс,37413211,Україна,Інф-конс.послуги,26003052628485,current,1200.00,Паланіч Андрій Володимирович,,фізична особа
ВОЛЯ,"м. Київ, вул. Володимирська, буд. 69А",70,2019-10-02,TZ002BQST,Банківські послуги,Інші витрати,364029,Центральний офіс,37413211,Україна,Комісія банку,26003052628485,current,28.16,УДКСУ у Голосіївському районі м. Києва,38039757,юридична особа
ВОЛЯ,"м. Київ, вул. Грушевського, буд. 1Д",70,2019-10-01,AS99u7c2wp,Банківські послуги,Інші витрати,364028,Центральний офіс,37413211,Україна,Комісія банку,26003052628485,current,100.00,"ПАТ КБ ""Приватбанк""",14360570,юридична особа
ВОЛЯ,"м. Львів, вул. Сахарова, буд. 78",70,2019-09-30,56671379,Банківські послуги,Інші витрати,364011,Сокальська районна організація,40001460,Львівська область,Комісія банку за РКО,2600501664565,current,25.00,"ПАТ ""Кредобанк""",09807862,юридична особа
ВОЛЯ,"м. Київ, вул. Межигірська, буд. 5, кв. 18",72,2019-09-30,154,"Придбання, ремонт офісної техніки та програмного забезпечення (Бухгалтерські програми, Ліга.закон, домени)",Придбання офісної техніки та програмного забезпечення,364008,Центральний офіс,37413211,Україна,Оплата за послуги у сферi iнформацiї програми 1С,26003052628485,current,2810.00,"ТОВ ""Ц.І.Т.""",37037811,юридична особа
ВОЛЯ,"м. Київ, вул. Володимирська, буд. 69А",70,2019-09-30,9UO2K9YBDY,Банківські послуги,Інші витрати,364007,Центральний офіс,37413211,Україна,Комісія банку,26003052628485,current,3.00,УДКСУ у Голосіївському районі м. Києва,38039757,юридична особа
ВОЛЯ,"м. Київ, вул. Володимирська, буд. 69А",70,2019-09-30,9UO2K9Y4AY,Банківські послуги,Інші витрати,364006,Центральний офіс,37413211,Україна,Комісія банку,26003052628485,current,3.00,УДКСУ у Голосіївському районі м. Києва,38039757,юридична особа
ВОЛЯ,"м. Київ, вул. Володимирська, буд. 69А",70,2019-09-30,9UO2K9YAXY,Банківські послуги,Інші витрати,364005,Центральний офіс,37413211,Україна,Комісія банку,26003052628485,current,3.00,УДКСУ у Голосіївському районі м. Києва,38039757,юридична особа
ВОЛЯ,"м. Київ, вул. Володимирська, буд. 69А",61,2019-09-30,152,Військовий збір,Податкові платежі,364004,Центральний офіс,37413211,Україна,Військ.збір ЗП 09/2019,26003052628485,current,209.87,УДКСУ у Голосіївському районі м. Києва,38039757,юридична особа
ВОЛЯ,"м. Київ, вул. Володимирська, буд. 69А",63,2019-09-30,151,Податок на доходи,Податкові платежі,364003,Центральний офіс,37413211,Україна,ПДФО ЗП 09/2019,26003052628485,current,2518.56,УДКСУ у Голосіївському районі м. Києва,38039757,юридична особа
ВОЛЯ,"м. Київ, вул. Жилянська, буд. 23",62,2019-09-30,150,Сплата ЄСВ,Податкові платежі,364002,Центральний офіс,37413211,Україна,ЕСВ 22 %ЗП 09/2019,26003052628485,current,3078.24,ДПІ у Голосіївському районі м. Києва,39468461,юридична особа
ВОЛЯ,м. Стаханiв,84,2019-09-30,190930СТ714799,"Заробітна плата, премії","Заробітна плата, лікарняні, вагітності, відрядження, компенсації",363932,Центральний офіс,37413211,Україна,Заробітна плата за 09/2019,26003052628485,current,1.66,Земськов Антон Володимирович,,фізична особа
ВОЛЯ,м. Чернігів,84,2019-09-30,190930СТ714799,"Заробітна плата, премії","Заробітна плата, лікарняні, вагітності, відрядження, компенсації",363931,Центральний офіс,37413211,Україна,Заробітна плата за 09/2019,26003052628485,current,5.87,Ступак Володимир Федорович,,фізична особа
ВОЛЯ,м. Київ,84,2019-09-30,190930СТ714799,"Заробітна плата, премії","Заробітна плата, лікарняні, вагітності, відрядження, компенсації",363930,Центральний офіс,37413211,Україна,Заробітна плата за 09/2019,26003052628485,current,3.73,Ліфар Наталія Володимирівна,,фізична особа
ВОЛЯ,"м. Київ, вул. Кирилівська, буд. 102",60,2019-09-24,149,Інші податки,Податкові платежі,364001,Центральний офіс,37413211,Україна,За обробку даних для видачi сертифiкатiв ЕП,26003052628485,current,332.00,"ТОВ ""Центр сертифікації ключів ""Україна""",36865753,юридична особа
ВОЛЯ,"м. Київ, вул. Володимирська, буд. 69А",70,2019-09-24,9OO2JJQL5Y,Банківські послуги,Інші витрати,364000,Центральний офіс,37413211,Україна,Комісія банку,26003052628485,current,3.00,УДКСУ у Голосіївському районі м. Києва,38039757,юридична особа
ВОЛЯ,"м. Київ, вул. Володимирська, буд. 69А",70,2019-09-19,9JO2J2RRCY,Банківські послуги,Інші витрати,363999,Центральний офіс,37413211,Україна,Комісія банку,26003052628485,current,3.00,УДКСУ у Голосіївському районі м. Києва,38039757,юридична особа
ВОЛЯ,"м. Київ, вул. Потапова, буд. 4, оф. 106",76,2019-09-19,147,Послуги зв’язку,Послуги зв’язку,363998,Центральний офіс,37413211,Україна,Послуги інтернет,26003052628485,current,852.40,"ТОВ ""УТЕЛС",38590278,юридична особа
ВОЛЯ,"м. Київ, вул. Володимирська, буд. 69А",70,2019-09-16,TZ006B8QKU,Банківські послуги,Інші витрати,363997,Центральний офіс,37413211,Україна,Комісія банку,26003052628485,current,28.67,УДКСУ у Голосіївському районі м. Києва,38039757,юридична особа
ВОЛЯ,"м. Київ, вул. Володимирська, буд. 69А",70,2019-09-16,9GO2IFOYTY,Банківські послуги,Інші витрати,363996,Центральний офіс,37413211,Україна,Комісія банку,26003052628485,current,3.00,УДКСУ у Голосіївському районі м. Києва,38039757,юридична особа
ВОЛЯ,"м. Київ, вул. Володимирська, буд. 69А",70,2019-09-16,9GO2IFOYLY,Банківські послуги,Інші витрати,363995,Центральний офіс,37413211,Україна,Комісія банку,26003052628485,current,3.00,УДКСУ у Голосіївському районі м. Києва,38039757,юридична особа
ВОЛЯ,"м. Київ, вул. Володимирська, буд. 69А",70,2019-09-16,9GO2IFOYCY,Банківські послуги,Інші витрати,363994,Центральний офіс,37413211,Україна,Комісія банку,26003052628485,current,3.00,УДКСУ у Голосіївському районі м. Києва,38039757,юридична особа
ВОЛЯ,"м. Київ, вул. Володимирська, буд. 69А",61,2019-09-16,145,Військовий збір,Податкові платежі,363993,Центральний офіс,37413211,Україна,Військ.збір ЗП 09/2019 аванс,26003052628485,current,213.72,УДКСУ у Голосіївському районі м. Києва,38039757,юридична особа
ВОЛЯ,"м. Київ, вул. Володимирська, буд. 69А",63,2019-09-16,144,Податок на доходи,Податкові платежі,363992,Центральний офіс,37413211,Україна,ПДФО ЗП 09/2019 аванс,26003052628485,current,2564.58,УДКСУ у Голосіївському районі м. Києва,38039757,юридична особа
ВОЛЯ,"м. Київ, вул. Жилянська, буд. 23",62,2019-09-16,143,Сплата ЄСВ,Податкові платежі,363991,Центральний офіс,37413211,Україна,ЕСВ 22 %ЗП 09/2019 аванс,26003052628485,current,3134.48,ДПІ у Голосіївському районі м. Києва,39468461,юридична особа
ВОЛЯ,м. Стаханiв,84,2019-09-16,190916СТ405927,"Заробітна плата, премії","Заробітна плата, лікарняні, вагітності, відрядження, компенсації",363929,Центральний офіс,37413211,Україна,Заробітна плата за 09/2019 (аванс),26003052628485,current,1.77,Земськов Антон Володимирович,,фізична особа
ВОЛЯ,м. Київ,84,2019-09-16,190916СТ405927,"Заробітна плата, премії","Заробітна плата, лікарняні, вагітності, відрядження, компенсації",363928,Центральний офіс,37413211,Україна,Заробітна плата за 09/2019 (аванс),26003052628485,current,3.37,Ліфар Наталія Володимирівна,,фізична особа
ВОЛЯ,м. Чернігів,84,2019-09-16,190916СТ405927,"Заробітна плата, премії","Заробітна плата, лікарняні, вагітності, відрядження, компенсації",363927,Центральний офіс,37413211,Україна,Заробітна плата за 09/2019 (аванс),26003052628485,current,6.32,Ступак Володимир Федорович,,фізична особа
ВОЛЯ,"м. Київ, вул. Володимирська, буд. 69А",70,2019-09-04,94O2H39A6Y,Банківські послуги,Інші витрати,363990,Центральний офіс,37413211,Україна,Комісія банку,26003052628485,current,3.00,УДКСУ у Голосіївському районі м. Києва,38039757,юридична особа
ВОЛЯ,"м. Київ, вул. Кирилівська, буд. 102",72,2019-09-04,141,"Придбання, ремонт офісної техніки та програмного забезпечення (Бухгалтерські програми, Ліга.закон, домени)",Придбання офісної техніки та програмного забезпечення,363989,Центральний офіс,37413211,Україна,Постачання пакету оновлень бух програми для звітності,26003052628485,current,900.00,"ТОВ ""Софт Солюшнз""",38800462,юридична особа
ВОЛЯ,"м. Київ, вул. Володимирська, буд. 69А",70,2019-09-02,AS98u2clrp,Банківські послуги,Інші витрати,363988,Центральний офіс,37413211,Україна,Комісія банку,26003052628485,current,100.00,УДКСУ у Голосіївському районі м. Києва,38039757,юридична особа
ВОЛЯ,"м. Львів, вул. Сахарова, буд. 78",70,2019-08-30,50596237,Банківські послуги,Інші витрати,364010,Сокальська районна організація,40001460,Львівська область,Комісія банку за РКО,2600501664565,current,25.00,"ПАТ ""Кредобанк""",09807862,юридична особа
ВОЛЯ,"м. Київ, вул. Володимирська, буд. 69А",70,2019-08-30,TZ000BIC21,Банківські послуги,Інші витрати,363987,Центральний офіс,37413211,Україна,Комісія банку,26003052628485,current,28.16,УДКСУ у Голосіївському районі м. Києва,38039757,юридична особа
ВОЛЯ,"м. Київ, вул. Володимирська, буд. 69А",70,2019-08-30,8UO2GHZWIY,Банківські послуги,Інші витрати,363986,Центральний офіс,37413211,Україна,Комісія банку,26003052628485,current,3.00,УДКСУ у Голосіївському районі м. Києва,38039757,юридична особа
ВОЛЯ,"м. Київ, вул. Володимирська, буд. 69А",70,2019-08-30,8UO2GHZWOY,Банківські послуги,Інші витрати,363985,Центральний офіс,37413211,Україна,Комісія банку,26003052628485,current,3.00,УДКСУ у Голосіївському районі м. Києва,38039757,юридична особа
ВОЛЯ,"м. Київ, вул. Володимирська, буд. 69А",70,2019-08-30,8UO2GHZWRY,Банківські послуги,Інші витрати,363984,Центральний офіс,37413211,Україна,Комісія банку,26003052628485,current,3.00,УДКСУ у Голосіївському районі м. Києва,38039757,юридична особа
ВОЛЯ,"м. Київ, вул. Володимирська, буд. 69А",61,2019-08-30,142,Військовий збір,Податкові платежі,363983,Центральний офіс,37413211,Україна,Військ.збір ЗП 08/2019,26003052628485,current,209.87,УДКСУ у Голосіївському районі м. Києва,38039757,юридична особа
ВОЛЯ,"м. Київ, вул. Володимирська, буд. 69А",63,2019-08-30,141,Податок на доходи,Податкові платежі,363982,Центральний офіс,37413211,Україна,ПДФО ЗП 08/2019,26003052628485,current,2518.56,УДКСУ у Голосіївському районі м. Києва,38039757,юридична особа
ВОЛЯ,"м. Київ, вул. Жилянська, буд. 23",62,2019-08-30,140,Сплата ЄСВ,Податкові платежі,363981,Центральний офіс,37413211,Україна,ЕСВ 22 %ЗП 08/2019,26003052628485,current,3078.24,ДПІ у Голосіївському районі м. Києва,39468461,юридична особа
ВОЛЯ,м. Чернігів,84,2019-08-30,190801СТ084960,"Заробітна плата, премії","Заробітна плата, лікарняні, вагітності, відрядження, компенсації",363926,Центральний офіс,37413211,Україна,Заробітна плата за 08/2019,26003052628485,current,5.87,Ступак Володимир Федорович,,фізична особа
ВОЛЯ,м. Стаханiв,84,2019-08-30,190801СТ084960,"Заробітна плата, премії","Заробітна плата, лікарняні, вагітності, відрядження, компенсації",363925,Центральний офіс,37413211,Україна,Заробітна плата за 08/2019,26003052628485,current,1.66,Земськов Антон Володимирович,,фізична особа
ВОЛЯ,м. Київ,84,2019-08-30,190801СТ084960,"Заробітна плата, премії","Заробітна плата, лікарняні, вагітності, відрядження, компенсації",363924,Центральний офіс,37413211,Україна,Заробітна плата за 08/2019,26003052628485,current,3.73,Ліфар Наталія Володимирівна,,фізична особа
ВОЛЯ,"м. Київ, вул. Антонова, буд. 5А",78,2019-08-29,139,Оренда обладнання та технічних засобів,Оренда обладнання та технічних засобів,363980,Центральний офіс,37413211,Україна,Оренда кулерів рах 3810834,26003052628485,current,180.00,"""Аквамаркет сервіс""",38791982,юридична особа
ВОЛЯ,"м. Київ, вул. Володимирська, буд. 69А",70,2019-08-29,8TO2GAZFLY,Банківські послуги,Інші витрати,363979,Центральний офіс,37413211,Україна,Комісія банку,26003052628485,current,3.00,УДКСУ у Голосіївському районі м. Києва,38039757,юридична особа
ВОЛЯ,"м. Київ, вул. Антонова, буд. 5А",78,2019-08-22,138,Оренда обладнання та технічних засобів,Оренда обладнання та технічних засобів,363978,Центральний офіс,37413211,Україна,Оренда кулерів рах 4646601,26003052628485,current,67.99,"""Аквамаркет сервіс""",38791982,юридична особа
ВОЛЯ,"м. Київ, вул. Потапова, буд. 4, оф. 106",76,2019-08-22,137,Послуги зв’язку,Послуги зв’язку,363977,Центральний офіс,37413211,Україна,Послуги інтернет,26003052628485,current,927.25,"ТОВ ""УТЕЛС",38590278,юридична особа
ВОЛЯ,"м. Київ, вул. Володимирська, буд. 69А",70,2019-08-22,8MO2FOYC9Y,Банківські послуги,Інші витрати,363976,Центральний офіс,37413211,Україна,Комісія банку,26003052628485,current,3.00,УДКСУ у Голосіївському районі м. Києва,38039757,юридична особа
ВОЛЯ,"м. Київ, вул. Володимирська, буд. 69А",70,2019-08-22,8MO2FOQDHY,Банківські послуги,Інші витрати,363975,Центральний офіс,37413211,Україна,Комісія банку,26003052628485,current,3.00,УДКСУ у Голосіївському районі м. Києва,38039757,юридична особа
ВОЛЯ,"м. Київ, вул. Володимирська, буд. 69А",70,2019-08-20,8KO2FCVD3Y,Банківські послуги,Інші витрати,363974,Центральний офіс,37413211,Україна,Комісія банку,26003052628485,current,3.00,УДКСУ у Голосіївському районі м. Києва,38039757,юридична особа
ВОЛЯ,"м. Київ, вул. Володимирська, буд. 69А",70,2019-08-20,8KO2FCVCWY,Банківські послуги,Інші витрати,363973,Центральний офіс,37413211,Україна,Комісія банку,26003052628485,current,3.00,УДКСУ у Голосіївському районі м. Києва,38039757,юридична особа
ВОЛЯ,"м. Київ, вул. Потапова, буд. 4, оф. 106",76,2019-08-20,135,Послуги зв’язку,Послуги зв’язку,363972,Центральний офіс,37413211,Україна,Послуги інтернет,26003052628485,current,1831.75,"ТОВ ""УТЕЛС",38590278,юридична особа
ВОЛЯ,"м. Київ, просп. Червонозоряний, буд. 51",76,2019-08-20,136,Послуги зв’язку,Послуги зв’язку,363971,Центральний офіс,37413211,Україна,Послуги зв»язку,26003052628485,current,470.71,"ПрАТ ""Київстар""",21673832,юридична особа
ВОЛЯ,"м. Київ, вул. Володимирська, буд. 69А",70,2019-08-15,TZ005BE3K6,Банківські послуги,Інші витрати,363970,Центральний офіс,37413211,Україна,Комісія банку,26003052628485,current,35.70,УДКСУ у Голосіївському районі м. Києва,38039757,юридична особа
ВОЛЯ,"м. Київ, вул. Володимирська, буд. 69А",70,2019-08-15,8FO2ESG5SY,Банківські послуги,Інші витрати,363969,Центральний офіс,37413211,Україна,Комісія банку,26003052628485,current,3.00,УДКСУ у Голосіївському районі м. Києва,38039757,юридична особа
ВОЛЯ,"м. Київ, вул. Володимирська, буд. 69А",70,2019-08-15,8FO2ESG5MY,Банківські послуги,Інші витрати,363968,Центральний офіс,37413211,Україна,Комісія банку,26003052628485,current,3.00,УДКСУ у Голосіївському районі м. Києва,38039757,юридична особа
ВОЛЯ,"м. Київ, вул. Володимирська, буд. 69А",70,2019-08-15,8FO2ESG5GY,Банківські послуги,Інші витрати,363967,Центральний офіс,37413211,Україна,Комісія банку,26003052628485,current,3.00,УДКСУ у Голосіївському районі м. Києва,38039757,юридична особа
ВОЛЯ,"м. Київ, вул. Володимирська, буд. 69А",61,2019-08-15,134,Військовий збір,Податкові платежі,363966,Центральний офіс,37413211,Україна,Військ.збір ЗП 08/2019 аванс,26003052628485,current,266.10,УДКСУ у Голосіївському районі м. Києва,38039757,юридична особа
ВОЛЯ,"м. Київ, вул. Володимирська, буд. 69А",63,2019-08-15,133,Податок на доходи,Податкові платежі,363965,Центральний офіс,37413211,Україна,ПДФО ЗП 08/2019 аванс,26003052628485,current,3193.14,УДКСУ у Голосіївському районі м. Києва,38039757,юридична особа
ВОЛЯ,"м. Київ, вул. Жилянська, буд. 23",62,2019-08-15,132,Сплата ЄСВ,Податкові платежі,363964,Центральний офіс,37413211,Україна,ЕСВ 22 %ЗП 08/2019 аванс,26003052628485,current,3902.72,ДПІ у Голосіївському районі м. Києва,39468461,юридична особа
ВОЛЯ,"Києве-Святош. р-н, смт Чабани",84,2019-08-15,190815СТ802302,"Заробітна плата, премії","Заробітна плата, лікарняні, вагітності, відрядження, компенсації",363923,Центральний офіс,37413211,Україна,Заробітна плата за 08/2019 (аванс),26003052628485,current,2.81,Маляренко Антон Миколайович,,фізична особа
ВОЛЯ,м. Чернігів,84,2019-08-15,190815СТ802302,"Заробітна плата, премії","Заробітна плата, лікарняні, вагітності, відрядження, компенсації",363922,Центральний офіс,37413211,Україна,Заробітна плата за 08/2019 (аванс),26003052628485,current,6.32,Ступак Володимир Федорович,,фізична особа
ВОЛЯ,м. Київ,84,2019-08-15,190815СТ802302,"Заробітна плата, премії","Заробітна плата, лікарняні, вагітності, відрядження, компенсації",363921,Центральний офіс,37413211,Україна,Заробітна плата за 08/2019 (аванс),26003052628485,current,3.37,Ліфар Наталія Володимирівна,,фізична особа
ВОЛЯ,м. Стаханiв,84,2019-08-15,190815СТ802302,"Заробітна плата, премії","Заробітна плата, лікарняні, вагітності, відрядження, компенсації",363920,Центральний офіс,37413211,Україна,Заробітна плата за 08/2019 (аванс),26003052628485,current,1.77,Земськов Антон Володимирович,,фізична особа
ВОЛЯ,"м. Київ, вул. Антонова, буд. 5А",78,2019-08-12,129,Оренда обладнання та технічних засобів,Оренда обладнання та технічних засобів,363963,Центральний офіс,37413211,Україна,Оренда кулерів рах 4574096,26003052628485,current,180.00,"""Аквамаркет сервіс""",38791982,юридична особа
ВОЛЯ,"м. Київ, вул. Антонова, буд. 5А",78,2019-08-12,130,Оренда обладнання та технічних засобів,Оренда обладнання та технічних засобів,363962,Центральний офіс,37413211,Україна,Оренда кулерів рах 4632242,26003052628485,current,180.00,"""Аквамаркет сервіс""",38791982,юридична особа
ВОЛЯ,"м. Київ, вул. Володимирська, буд. 69А",70,2019-08-12,8CO2E8LPTY,Банківські послуги,Інші витрати,363961,Центральний офіс,37413211,Україна,Комісія банку,26003052628485,current,3.00,УДКСУ у Голосіївському районі м. Києва,38039757,юридична особа
ВОЛЯ,"м. Київ, вул. Володимирська, буд. 69А",70,2019-08-12,8CO2E8LPOY,Банківські послуги,Інші витрати,363960,Центральний офіс,37413211,Україна,Комісія банку,26003052628485,current,3.00,УДКСУ у Голосіївському районі м. Києва,38039757,юридична особа
ВОЛЯ,"м. Київ, вул. Володимирська, буд. 69А",70,2019-08-02,TZ002B5RQW,Банківські послуги,Інші витрати,363959,Центральний офіс,37413211,Україна,Комісія банку,26003052628485,current,43.70,УДКСУ у Голосіївському районі м. Києва,38039757,юридична особа
ВОЛЯ,"м. Київ, вул. Грушевського, буд. 1Д",70,2019-08-01,AS97vsih2p,Банківські послуги,Інші витрати,363958,Центральний офіс,37413211,Україна,Комісія банку,26003052628485,current,100.00,"ПАТ КБ ""Приватбанк""",14360570,юридична особа
ВОЛЯ,"м. Київ, вул. Володимирська, буд. 69А",70,2019-07-31,7VO2CVN5QY,Банківські послуги,Інші витрати,363957,Центральний офіс,37413211,Україна,Комісія банку,26003052628485,current,3.00,УДКСУ у Голосіївському районі м. Києва,38039757,юридична особа
ВОЛЯ,"м. Київ, вул. Володимирська, буд. 69А",70,2019-07-31,7VO2CVN65Y,Банківські послуги,Інші витрати,363956,Центральний офіс,37413211,Україна,Комісія банку,26003052628485,current,3.00,УДКСУ у Голосіївському районі м. Києва,38039757,юридична особа
ВОЛЯ,"м. Київ, вул. Володимирська, буд. 69А",70,2019-07-31,7VO2CVN62Y,Банківські послуги,Інші витрати,363955,Центральний офіс,37413211,Україна,Комісія банку,26003052628485,current,3.00,УДКСУ у Голосіївському районі м. Києва,38039757,юридична особа
ВОЛЯ,"м. Київ, вул. Володимирська, буд. 69А",61,2019-07-31,128,Військовий збір,Податкові платежі,363954,Центральний офіс,37413211,Україна,Військ.збір ЗП 07/2019,26003052628485,current,325.72,УДКСУ у Голосіївському районі м. Києва,38039757,юридична особа
ВОЛЯ,"м. Київ, вул. Володимирська, буд. 69А",63,2019-07-31,127,Податок на доходи,Податкові платежі,363953,Центральний офіс,37413211,Україна,ПДФО ЗП 07/2019,26003052628485,current,3908.65,УДКСУ у Голосіївському районі м. Києва,38039757,юридична особа
ВОЛЯ,"м. Київ, вул. Жилянська, буд. 23",62,2019-07-31,126,Сплата ЄСВ,Податкові платежі,363952,Центральний офіс,37413211,Україна,ЕСВ 22 %ЗП 07/2019,26003052628485,current,4777.26,ДПІ у Голосіївському районі м. Києва,39468461,юридична особа
ВОЛЯ,"Київська обл., м. Ірпінь",84,2019-07-31,190731СТ427014,"Заробітна плата, премії","Заробітна плата, лікарняні, вагітності, відрядження, компенсації",363919,Центральний офіс,37413211,Україна,Заробітна плата за 07/2019,26003052628485,current,3.46,Горпінченко Діна Олегівна,,фізична особа
ВОЛЯ,м. Чернігів,84,2019-07-31,190731СТ427014,"Заробітна плата, премії","Заробітна плата, лікарняні, вагітності, відрядження, компенсації",363918,Центральний офіс,37413211,Україна,Заробітна плата за 07/2019,26003052628485,current,6.42,Ступак Володимир Федорович,,фізична особа
ВОЛЯ,м. Київ,84,2019-07-31,190731СТ427014,"Заробітна плата, премії","Заробітна плата, лікарняні, вагітності, відрядження, компенсації",363917,Центральний офіс,37413211,Україна,Заробітна плата за 07/2019,26003052628485,current,4.02,Ліфар Наталія Володимирівна,,фізична особа
ВОЛЯ,м. Стаханiв,84,2019-07-31,190731СТ427014,"Заробітна плата, премії","Заробітна плата, лікарняні, вагітності, відрядження, компенсації",363916,Центральний офіс,37413211,Україна,Заробітна плата за 07/2019,26003052628485,current,1.81,Земськов Антон Володимирович,,фізична особа
ВОЛЯ,"Києве-Святош. р-н, смт Чабани",84,2019-07-31,190731СТ427014,"Заробітна плата, премії","Заробітна плата, лікарняні, вагітності, відрядження, компенсації",363915,Центральний офіс,37413211,Україна,Заробітна плата за 07/2019,26003052628485,current,1.76,Маляренко Антон Миколайович,,фізична особа
ВОЛЯ,"м. Львів, вул. Сахарова, буд. 78",70,2019-07-30,44655014,Банківські послуги,Інші витрати,364009,Сокальська районна організація,40001460,Львівська область,Комісія банку за РКО,2600501664565,current,25.00,"ПАТ ""Кредобанк""",09807862,юридична особа
ВОЛЯ,"м. Київ, вул. Лейпцизька, буд. 15",76,2019-07-15,123,Послуги зв’язку,Послуги зв’язку,363951,Центральний офіс,37413211,Україна,Послуги зв»язку,26003052628485,current,25.83,"ПрАТ ""ВФ Україна""",14333937,юридична особа
ВОЛЯ,"м. Київ, вул. Володимирська, буд. 69А",70,2019-07-15,4OO21ETRYY,Банківські послуги,Інші витрати,363950,Центральний офіс,37413211,Україна,Комісія банку,26003052628485,current,3.00,УДКСУ у Голосіївському районі м. Києва,38039757,юридична особа
ВОЛЯ,"м. Київ, вул. Антонова, буд. 5А",78,2019-07-15,124,Оренда обладнання та технічних засобів,Оренда обладнання та технічних засобів,363949,Центральний офіс,37413211,Україна,Оренда кулерів рах 4221198,26003052628485,current,180.00,"""Аквамаркет сервіс""",38791982,юридична особа
ВОЛЯ,"м. Київ, вул. Володимирська, буд. 69А",70,2019-07-15,TZ005BJ9PW,Банківські послуги,Інші витрати,363948,Центральний офіс,37413211,Україна,Комісія банку,26003052628485,current,34.27,УДКСУ у Голосіївському районі м. Києва,38039757,юридична особа
ВОЛЯ,"м. Київ, вул. Володимирська, буд. 69А",70,2019-07-15,7FO2AWO5UY,Банківські послуги,Інші витрати,363947,Центральний офіс,37413211,Україна,Комісія банку,26003052628485,current,3.00,УДКСУ у Голосіївському районі м. Києва,38039757,юридична особа
ВОЛЯ,"м. Київ, вул. Володимирська, буд. 69А",70,2019-07-15,7FO2ASM78Y,Банківські послуги,Інші витрати,363946,Центральний офіс,37413211,Україна,Комісія банку,26003052628485,current,3.00,УДКСУ у Голосіївському районі м. Києва,38039757,юридична особа
ВОЛЯ,"м. Київ, вул. Володимирська, буд. 69А",70,2019-07-15,7FO2ASM71Y,Банківські послуги,Інші витрати,363945,Центральний офіс,37413211,Україна,Комісія банку,26003052628485,current,3.00,УДКСУ у Голосіївському районі м. Києва,38039757,юридична особа
ВОЛЯ,"м. Київ, вул. Володимирська, буд. 69А",61,2019-07-15,121,Військовий збір,Податкові платежі,363944,Центральний офіс,37413211,Україна,Військ.збір ЗП 07/2019 аванс,26003052628485,current,255.39,УДКСУ у Голосіївському районі м. Києва,38039757,юридична особа
ВОЛЯ,"м. Київ, вул. Володимирська, буд. 69А",63,2019-07-15,120,Податок на доходи,Податкові платежі,363943,Центральний офіс,37413211,Україна,ПДФО ЗП 07/2019 аванс,26003052628485,current,3064.71,УДКСУ у Голосіївському районі м. Києва,38039757,юридична особа
ВОЛЯ,"м. Київ, вул. Жилянська, буд. 23",62,2019-07-15,119,Сплата ЄСВ,Податкові платежі,363942,Центральний офіс,37413211,Україна,ЕСВ 22 %ЗП 07/2019 аванс,26003052628485,current,3745.73,ДПІ у Голосіївському районі м. Києва,39468461,юридична особа
ВОЛЯ,"м. Київ, вул. Володимирська, буд. 69А",70,2019-07-15,7FO2ASM6XY,Банківські послуги,Інші витрати,363941,Центральний офіс,37413211,Україна,Комісія банку,26003052628485,current,3.00,УДКСУ у Голосіївському районі м. Києва,38039757,юридична особа
ВОЛЯ,м. Київ,84,2019-07-15,190715СТ109509,"Заробітна плата, премії","Заробітна плата, лікарняні, вагітності, відрядження, компенсації",363914,Центральний офіс,37413211,Україна,Заробітна плата за 07/2019 (аванс),26003052628485,current,3.08,Ліфар Наталія Володимирівна,,фізична особа
ВОЛЯ,"Києве-Святош. р-н, смт Чабани",84,2019-07-15,190715СТ109509,"Заробітна плата, премії","Заробітна плата, лікарняні, вагітності, відрядження, компенсації",363913,Центральний офіс,37413211,Україна,Заробітна плата за 07/2019 (аванс),26003052628485,current,1.62,Маляренко Антон Миколайович,,фізична особа
ВОЛЯ,м. Чернігів,84,2019-07-15,190715СТ109509,"Заробітна плата, премії","Заробітна плата, лікарняні, вагітності, відрядження, компенсації",363912,Центральний офіс,37413211,Україна,Заробітна плата за 07/2019 (аванс),26003052628485,current,5.78,Ступак Володимир Федорович,,фізична особа
ВОЛЯ,"Київська обл., м. Ірпінь",84,2019-07-15,190715СТ109509,"Заробітна плата, премії","Заробітна плата, лікарняні, вагітності, відрядження, компенсації",363911,Центральний офіс,37413211,Україна,Заробітна плата за 07/2019 (аванс),26003052628485,current,1.62,Горпінченко Діна Олегівна,,фізична особа
ВОЛЯ,м. Стаханiв,84,2019-07-15,190715СТ109509,"Заробітна плата, премії","Заробітна плата, лікарняні, вагітності, відрядження, компенсації",363910,Центральний офіс,37413211,Україна,Заробітна плата за 07/2019 (аванс),26003052628485,current,1.62,Земськов Антон Володимирович,,фізична особа
ВОЛЯ,"м. Київ, просп. Червонозоряний, буд. 51",76,2019-07-02,118,Послуги зв’язку,Послуги зв’язку,363940,Центральний офіс,37413211,Україна,Послуги зв»язку,26003052628485,current,1906.99,"ПрАТ ""Київстар""",21673832,юридична особа
ВОЛЯ,"м. Київ, вул. Володимирська, буд. 69А",70,2019-07-02,72O29AGQ0X,Банківські послуги,Інші витрати,363939,Центральний офіс,37413211,Україна,Комісія банку,26003052628485,current,3.81,УДКСУ у Голосіївському районі м. Києва,38039757,юридична особа
ВОЛЯ,"м. Київ, вул. Володимирська, буд. 69А",70,2019-07-02,72O29AGQ0Y,Банківські послуги,Інші витрати,363938,Центральний офіс,37413211,Україна,Комісія банку,26003052628485,current,3.00,УДКСУ у Голосіївському районі м. Києва,38039757,юридична особа
ВОЛЯ,"м. Київ, вул. Потапова, буд. 4, оф. 106",76,2019-07-02,117,Послуги зв’язку,Послуги зв’язку,363937,Центральний офіс,37413211,Україна,Послуги інтернет,26003052628485,current,4200.00,"ТОВ ""УТЕЛС",38590278,юридична особа
ВОЛЯ,"м. Київ, вул. Желябова, буд. 4",82,2019-07-02,118,"Гонорари, в тому числі за надані консультаційні послуги","Гонорари, в тому числі за надані консультаційні послуги",363936,Центральний офіс,37413211,Україна,Інф-конс.послуги,26003052628485,current,1200.00,Паланіч Андрій Володимирович,,фізична особа
ВОЛЯ,"м. Київ, вул. Володимирська, буд. 69А",70,2019-07-02,72O29AAX4Y,Банківські послуги,Інші витрати,363935,Центральний офіс,37413211,Україна,Комісія банку,26003052628485,current,3.00,УДКСУ у Голосіївському районі м. Києва,38039757,юридична особа
ВОЛЯ,"м. Київ, вул. Володимирська, буд. 69А",70,2019-07-02,72O29AAX7Y,Банківські послуги,Інші витрати,363934,Центральний офіс,37413211,Україна,Комісія банку,26003052628485,current,3.00,УДКСУ у Голосіївському районі м. Києва,38039757,юридична особа
ВОЛЯ,"м. Київ, вул. Грушевського, буд. 1Д",70,2019-07-01,AS96r48bip,Банківські послуги,Інші витрати,363933,Центральний офіс,37413211,Україна,Комісія банку,26003052628485,current,100.00,"ПАТ КБ ""Приватбанк""",14360570,юридична особа
ВОЛЯ,"м. Львів, вул. Сахарова, буд. 78",70,2019-06-27,18270121,Банківські послуги,Інші витрати,363909,Сокальська районна організація,40001460,Львівська область,Комісія банку за РКО,2600501664565,current,25.00,"ПАТ ""Кредобанк""",09807862,юридична особа
ВОЛЯ,"м. Київ, вул. Грушевського, буд. 1Д",70,2019-06-27,6RO28R1HFY,Банківські послуги,Інші витрати,363905,Центральний офіс,37413211,Україна,Комісія за РКО,26003052628485,current,3.00,"ПАТ КБ ""Приватбанк""",14360570,юридична особа
ВОЛЯ,"м. Київ, вул. Володимирська, буд. 69А",70,2019-06-27,6RO28R1H4Y,Банківські послуги,Інші витрати,363904,Центральний офіс,37413211,Україна,Комісія банку,26003052628485,current,3.00,УДКСУ у Голосіївському районі м. Києва,38039757,юридична особа
ВОЛЯ,"м. Київ, вул. Володимирська, буд. 69А",70,2019-06-27,6RO28R1GXY,Банківські послуги,Інші витрати,363903,Центральний офіс,37413211,Україна,Комісія банку,26003052628485,current,3.00,УДКСУ у Голосіївському районі м. Києва,38039757,юридична особа
ВОЛЯ,"м. Київ, вул. Володимирська, буд. 69А",61,2019-06-27,115,Військовий збір,Податкові платежі,363902,Центральний офіс,37413211,Україна,Військ.збір ЗП 06/2019,26003052628485,current,251.36,УДКСУ у Голосіївському районі м. Києва,38039757,юридична особа
ВОЛЯ,"м. Київ, вул. Володимирська, буд. 69А",63,2019-06-27,114,Податок на доходи,Податкові платежі,363901,Центральний офіс,37413211,Україна,ПДФО ЗП 06/2019,26003052628485,current,3016.40,УДКСУ у Голосіївському районі м. Києва,38039757,юридична особа
ВОЛЯ,"м. Київ, вул. Жилянська, буд. 23",62,2019-06-27,113,Сплата ЄСВ,Податкові платежі,363900,Центральний офіс,37413211,Україна,ЕСВ 22 %ЗП 06/2019,26003052628485,current,3686.72,ДПІ у Голосіївському районі м. Києва,39468461,юридична особа
ВОЛЯ,"Київська обл., м. Ірпінь",84,2019-06-27,190627СТ782197,"Заробітна плата, премії","Заробітна плата, лікарняні, вагітності, відрядження, компенсації",363791,Центральний офіс,37413211,Україна,Заробітна плата за 06/2019,26003052628485,current,1.50,Горпінченко Діна Олегівна,,фізична особа
ВОЛЯ,"Києве-Святош. р-н, смт Чабани",84,2019-06-27,190627СТ782197,"Заробітна плата, премії","Заробітна плата, лікарняні, вагітності, відрядження, компенсації",363790,Центральний офіс,37413211,Україна,Заробітна плата за 06/2019,26003052628485,current,1.50,Маляренко Антон Миколайович,,фізична особа
ВОЛЯ,м. Стаханiв,84,2019-06-27,190627СТ782197,"Заробітна плата, премії","Заробітна плата, лікарняні, вагітності, відрядження, компенсації",363789,Центральний офіс,37413211,Україна,Заробітна плата за 06/2019,26003052628485,current,1.50,Земськов Антон Володимирович,,фізична особа
ВОЛЯ,м. Чернігів,84,2019-06-27,190627СТ782197,"Заробітна плата, премії","Заробітна плата, лікарняні, вагітності, відрядження, компенсації",363788,Центральний офіс,37413211,Україна,Заробітна плата за 06/2019,26003052628485,current,5.48,Ступак Володимир Федорович,,фізична особа
ВОЛЯ,м. Київ,84,2019-06-27,190627СТ782197,"Заробітна плата, премії","Заробітна плата, лікарняні, вагітності, відрядження, компенсації",363787,Центральний офіс,37413211,Україна,Заробітна плата за 06/2019,26003052628485,current,3.50,Ліфар Наталія Володимирівна,,фізична особа
ВОЛЯ,"м. Київ, вул. Володимирська, буд. 69А",70,2019-06-26,6QO28ME2UY,Банківські послуги,Інші витрати,363899,Центральний офіс,37413211,Україна,Комісія банку,26003052628485,current,3.00,УДКСУ у Голосіївському районі м. Києва,38039757,юридична особа
ВОЛЯ,"м. Київ, вул. Межигірська, буд. 5, кв. 18",72,2019-06-26,112,"Придбання, ремонт офісної техніки та програмного забезпечення (Бухгалтерські програми, Ліга.закон, домени)",Придбання офісної техніки та програмного забезпечення,363898,Центральний офіс,37413211,Україна,Оплата за послуги у сферi iнформацiї програми 1С,26003052628485,current,3230.00,"ТОВ ""Ц.І.Т.""",37037811,юридична особа
ВОЛЯ,"м. Київ, вул. Володимирська, буд. 69А",70,2019-06-21,6LO285D9TY,Банківські послуги,Інші витрати,363897,Центральний офіс,37413211,Україна,Комісія банку,26003052628485,current,3.00,УДКСУ у Голосіївському районі м. Києва,38039757,юридична особа
ВОЛЯ,"м. Київ, площа Лесі Українки, буд. 1",59,2019-06-21,111,Грошова застава,Грошова застава,363896,Центральний офіс,37413211,Україна,Грошова застава кандидату у НРУ Сергієнко С.В.,26003052628485,current,41730.00,Центральна виборча комісія,21661450,юридична особа
ВОЛЯ,"м. Київ, вул. Володимирська, буд. 69А",70,2019-06-18,6IO27IO5SY,Банківські послуги,Інші витрати,363895,Центральний офіс,37413211,Україна,Комісія банку,26003052628485,current,3.00,УДКСУ у Голосіївському районі м. Києва,38039757,юридична особа
ВОЛЯ,"м. Київ, площа Лесі Українки, буд. 1",59,2019-06-18,110,Грошова застава,Грошова застава,363894,Центральний офіс,37413211,Україна,Грошова застава кандидату у НРУ Артьомова С.М.,26003052628485,current,41730.00,Центральна виборча комісія,21661450,юридична особа
ВОЛЯ,"м. Київ, вул. Володимирська, буд. 69А",70,2019-06-14,TZ004BQ0DR,Банківські послуги,Інші витрати,363893,Центральний офіс,37413211,Україна,Комісія банку,26003052628485,current,39.80,УДКСУ у Голосіївському районі м. Києва,38039757,юридична особа
ВОЛЯ,"м. Київ, вул. Володимирська, буд. 69А",70,2019-06-14,6EO278CMZY,Банківські послуги,Інші витрати,363892,Центральний офіс,37413211,Україна,Комісія банку,26003052628485,current,3.00,УДКСУ у Голосіївському районі м. Києва,38039757,юридична особа
ВОЛЯ,"м. Київ, вул. Володимирська, буд. 69А",70,2019-06-14,6EO278CN5Y,Банківські послуги,Інші витрати,363891,Центральний офіс,37413211,Україна,Комісія банку,26003052628485,current,3.00,УДКСУ у Голосіївському районі м. Києва,38039757,юридична особа
ВОЛЯ,"м. Київ, вул. Володимирська, буд. 69А",70,2019-06-14,6EO278CMVY,Банківські послуги,Інші витрати,363890,Центральний офіс,37413211,Україна,Комісія банку,26003052628485,current,3.00,УДКСУ у Голосіївському районі м. Києва,38039757,юридична особа
ВОЛЯ,"м. Київ, вул. Володимирська, буд. 69А",61,2019-06-14,104,Військовий збір,Податкові платежі,363889,Центральний офіс,37413211,Україна,Військ.збір ЗП 06/2019 аванс,26003052628485,current,296.67,УДКСУ у Голосіївському районі м. Києва,38039757,юридична особа
ВОЛЯ,"м. Київ, вул. Володимирська, буд. 69А",63,2019-06-14,103,Податок на доходи,Податкові платежі,363888,Центральний офіс,37413211,Україна,ПДФО ЗП 06/2019 аванс,26003052628485,current,3560.00,УДКСУ у Голосіївському районі м. Києва,38039757,юридична особа
ВОЛЯ,"м. Київ, вул. Жилянська, буд. 23",62,2019-06-14,102,Сплата ЄСВ,Податкові платежі,363887,Центральний офіс,37413211,Україна,ЕСВ 22 %ЗП 06/2019 аванс,26003052628485,current,4351.10,ДПІ у Голосіївському районі м. Києва,39468461,юридична особа
ВОЛЯ,"м. Київ, вул. Володимирська, буд. 69А",70,2019-06-14,5OO24V970Y,Банківські послуги,Інші витрати,363886,Центральний офіс,37413211,Україна,Комісія банку,26003052628485,current,3.00,УДКСУ у Голосіївському районі м. Києва,38039757,юридична особа
ВОЛЯ,"м. Київ, вул. Володимирська, буд. 69А",70,2019-06-14,6EO27DJ1VY,Банківські послуги,Інші витрати,363885,Центральний офіс,37413211,Україна,Комісія банку,26003052628485,current,3.00,УДКСУ у Голосіївському районі м. Києва,38039757,юридична особа
ВОЛЯ,"м. Київ, вул. Володимирська, буд. 69А",70,2019-06-14,6EO27DJ20Y,Банківські послуги,Інші витрати,363884,Центральний офіс,37413211,Україна,Комісія банку,26003052628485,current,3.00,УДКСУ у Голосіївському районі м. Києва,38039757,юридична особа
ВОЛЯ,"м. Київ, вул. Володимирська, буд. 69А",70,2019-06-14,6EO27DJ1GY,Банківські послуги,Інші витрати,363883,Центральний офіс,37413211,Україна,Комісія банку,26003052628485,current,3.00,УДКСУ у Голосіївському районі м. Києва,38039757,юридична особа
ВОЛЯ,"Київська обл., м. Бориспіль, вул. Київский шлях, буд. 98, кв. 16",79,2019-06-14,106,"Оренда будинків і приміщень та експлуатаційні витрати (прибирання, страхування орендованих будинків, охорона, сигналізація, ремонт, вивіз сміття, тощо)",Оренда нерухомості,363882,Центральний офіс,37413211,Україна,Орендн плата за н/приміщення,26003052628485,current,6000.00,Паламарчук Олена Миколаївна,3085019287,фізична особа
ВОЛЯ,"м. Київ, вул. Потапова, буд. 4, оф. 106",76,2019-06-14,109,Послуги зв’язку,Послуги зв’язку,363881,Центральний офіс,37413211,Україна,Послуги інтернет,26003052628485,current,4200.00,"ТОВ ""УТЕЛС",38590278,юридична особа
ВОЛЯ,"м. Київ, просп. Червонозоряний, буд. 51",76,2019-06-14,108,Послуги зв’язку,Послуги зв’язку,363880,Центральний офіс,37413211,Україна,Послуги зв»язку,26003052628485,current,912.00,"ПрАТ ""Київстар""",21673832,юридична особа
ВОЛЯ,"м. Київ, просп. Червонозоряний, буд. 51",76,2019-06-14,107,Послуги зв’язку,Послуги зв’язку,363879,Центральний офіс,37413211,Україна,Послуги зв»язку,26003052628485,current,3014.00,"ПрАТ ""Київстар""",21673832,юридична особа
ВОЛЯ,"Києве-Святош. р-н, смт Чабани",84,2019-06-14,190614СТ516170,"Заробітна плата, премії","Заробітна плата, лікарняні, вагітності, відрядження, компенсації",363786,Центральний офіс,37413211,Україна,Заробітна плата за 06/2019 (аванс),26003052628485,current,1.88,Маляренко Антон Миколайович,,фізична особа
ВОЛЯ,м. Стаханiв,84,2019-06-14,190614СТ516170,"Заробітна плата, премії","Заробітна плата, лікарняні, вагітності, відрядження, компенсації",363785,Центральний офіс,37413211,Україна,Заробітна плата за 06/2019 (аванс),26003052628485,current,1.88,Земськов Антон Володимирович,,фізична особа
ВОЛЯ,м. Київ,84,2019-06-14,190614СТ516170,"Заробітна плата, премії","Заробітна плата, лікарняні, вагітності, відрядження, компенсації",363784,Центральний офіс,37413211,Україна,Заробітна плата за 06/2019 (аванс),26003052628485,current,3.58,Ліфар Наталія Володимирівна,,фізична особа
ВОЛЯ,"Київська обл., м. Ірпінь",84,2019-06-14,190614СТ516170,"Заробітна плата, премії","Заробітна плата, лікарняні, вагітності, відрядження, компенсації",363783,Центральний офіс,37413211,Україна,Заробітна плата за 06/2019 (аванс),26003052628485,current,1.88,Горпінченко Діна Олегівна,,фізична особа
ВОЛЯ,м. Чернігів,84,2019-06-14,190614СТ516170,"Заробітна плата, премії","Заробітна плата, лікарняні, вагітності, відрядження, компенсації",363782,Центральний офіс,37413211,Україна,Заробітна плата за 06/2019 (аванс),26003052628485,current,6.71,Ступак Володимир Федорович,,фізична особа
ВОЛЯ,"м. Київ, вул. Володимирська, буд. 69А",70,2019-06-13,6DO274KINY,Банківські послуги,Інші витрати,363878,Центральний офіс,37413211,Україна,Комісія банку,26003052628485,current,3.00,УДКСУ у Голосіївському районі м. Києва,38039757,юридична особа
ВОЛЯ,"м. Київ, вул. Володимирська, буд. 69А",70,2019-06-13,6DO274F9NY,Банківські послуги,Інші витрати,363877,Центральний офіс,37413211,Україна,Комісія банку,26003052628485,current,3.00,УДКСУ у Голосіївському районі м. Києва,38039757,юридична особа
ВОЛЯ,"м. Київ, вул. Володимирська, буд. 69А",70,2019-06-13,6DO2748P0Y,Банківські послуги,Інші витрати,363876,Центральний офіс,37413211,Україна,Комісія банку,26003052628485,current,3.00,УДКСУ у Голосіївському районі м. Києва,38039757,юридична особа
ВОЛЯ,"м. Київ, площа Лесі Українки, буд. 1",59,2019-06-13,101,Грошова застава,Грошова застава,363875,Центральний офіс,37413211,Україна,Грошова застава кандидату у НРУ Цегельника О.Я.,26003052628485,current,41730.00,Центральна виборча комісія,21661450,юридична особа
ВОЛЯ,"м. Київ, площа Лесі Українки, буд. 1",59,2019-06-13,100,Грошова застава,Грошова застава,363874,Центральний офіс,37413211,Україна,Грошова застава кандидату у НРУ Райтаровського М.А.,26003052628485,current,41730.00,Центральна виборча комісія,21661450,юридична особа
ВОЛЯ,"м. Київ, площа Лесі Українки, буд. 1",59,2019-06-13,99,Грошова застава,Грошова застава,363873,Центральний офіс,37413211,Україна,Грошова застава кандидату у НРУ Шупти В.М,26003052628485,current,41730.00,Центральна виборча комісія,21661450,юридична особа
ВОЛЯ,"м. Київ, вул. Володимирська, буд. 69А",70,2019-06-12,6CO26X48AY,Банківські послуги,Інші витрати,363872,Центральний офіс,37413211,Україна,Комісія банку,26003052628485,current,3.00,УДКСУ у Голосіївському районі м. Києва,38039757,юридична особа
ВОЛЯ,"м. Львів, пл. Катедральна, буд. 6, кв. 5",79,2019-06-12,97,"Оренда будинків і приміщень та експлуатаційні витрати (прибирання, страхування орендованих будинків, охорона, сигналізація, ремонт, вивіз сміття, тощо)",Оренда нерухомості,363871,Центральний офіс,37413211,Україна,Орендн плата за н/приміщення,26003052628485,current,30000.00,Даниленко Денис Юрійович,2787400010,фізична особа
ВОЛЯ,"м. Київ, вул. Лейпцизька, буд. 15",76,2019-06-12,98,Послуги зв’язку,Послуги зв’язку,363870,Центральний офіс,37413211,Україна,Послуги зв»язку,26003052628485,current,2776.56,"ПрАТ ""ВФ Україна""",14333937,юридична особа
ВОЛЯ,"м. Київ, вул. Володимирська, буд. 69А",70,2019-06-12,6CO26X474Y,Банківські послуги,Інші витрати,363869,Центральний офіс,37413211,Україна,Комісія банку,26003052628485,current,3.00,УДКСУ у Голосіївському районі м. Києва,38039757,юридична особа
ВОЛЯ,"м. Київ, вул. Потапова, буд. 4, оф. 106",76,2019-06-05,96,Послуги зв’язку,Послуги зв’язку,363868,Центральний офіс,37413211,Україна,Послуги інтернет,26003052628485,current,4200.00,"ТОВ ""УТЕЛС",38590278,юридична особа
ВОЛЯ,"м. Київ, вул. Володимирська, буд. 69А",70,2019-06-05,65O26572ZY,Банківські послуги,Інші витрати,363867,Центральний офіс,37413211,Україна,Комісія банку,26003052628485,current,3.00,УДКСУ у Голосіївському районі м. Києва,38039757,юридична особа
ВОЛЯ,"м. Київ, вул. Харківське шосе, б. 201-203, коп. 1А, літФ, кім. 604",72,2019-06-04,95,"Придбання, ремонт офісної техніки та програмного забезпечення (Бухгалтерські програми, Ліга.закон, домени)",Придбання офісної техніки та програмного забезпечення,363866,Центральний офіс,37413211,Україна,Оплата за послуги надання онлайн-сервісу,26003052628485,current,90.00,"ТОВ ""Вчасно сервіс""",41231992,юридична особа
ВОЛЯ,"м. Київ, вул. Володимирська, буд. 69А",70,2019-06-04,64O25WDGEY,Банківські послуги,Інші витрати,363865,Центральний офіс,37413211,Україна,Комісія банку,26003052628485,current,3.00,УДКСУ у Голосіївському районі м. Києва,38039757,юридична особа
ВОЛЯ,"м. Київ, вул. Грушевського, буд. 1Д",70,2019-06-03,AS95vmnxxp,Банківські послуги,Інші витрати,363864,Центральний офіс,37413211,Україна,Комісія банку,26003052628485,current,100.00,"ПАТ КБ ""Приватбанк""",14360570,юридична особа
ВОЛЯ,"м. Львів, вул. Сахарова, буд. 78",70,2019-05-31,11939239,Банківські послуги,Інші витрати,363908,Сокальська районна організація,40001460,Львівська область,Комісія банку за РКО,2600501664565,current,25.00,"ПАТ ""Кредобанк""",09807862,юридична особа
ВОЛЯ,"м. Київ, вул. Володимирська, буд. 69А",70,2019-05-31,TZ001B4RAX,Банківські послуги,Інші витрати,363863,Центральний офіс,37413211,Україна,Комісія банку,26003052628485,current,42823.00,УДКСУ у Голосіївському районі м. Києва,38039757,юридична особа
ВОЛЯ,"м. Київ, вул. Володимирська, буд. 69А",70,2019-05-31,5VO25LTF4Y,Банківські послуги,Інші витрати,363862,Центральний офіс,37413211,Україна,Комісія банку,26003052628485,current,3.00,УДКСУ у Голосіївському районі м. Києва,38039757,юридична особа
ВОЛЯ,"Івано-Франківська обл., м. Долина, вул. ЧОРНОВОЛА, буд. 10",59,2019-05-31,94,Грошова застава,Грошова застава,363861,Центральний офіс,37413211,Україна,Грошова застава місцевої організації,26003052628485,current,3628.00,Долинська міська виборча комісія,33921474,юридична особа
ВОЛЯ,"м. Київ, вул. Грушевського, буд. 1Д",70,2019-05-31,5VO25HPT5Y,Банківські послуги,Інші витрати,363860,Центральний офіс,37413211,Україна,Комісія за РКО,26003052628485,current,3.00,"ПАТ КБ ""Приватбанк""",14360570,юридична особа
ВОЛЯ,"м. Київ, вул. Володимирська, буд. 69А",70,2019-05-31,5VO25HPT2Y,Банківські послуги,Інші витрати,363859,Центральний офіс,37413211,Україна,Комісія банку,26003052628485,current,3.00,УДКСУ у Голосіївському районі м. Києва,38039757,юридична особа
ВОЛЯ,"м. Київ, вул. Володимирська, буд. 69А",70,2019-05-31,5VO25HPT0Y,Банківські послуги,Інші витрати,363858,Центральний офіс,37413211,Україна,Комісія банку,26003052628485,current,3.00,УДКСУ у Голосіївському районі м. Києва,38039757,юридична особа
ВОЛЯ,"м. Київ, вул. Володимирська, буд. 69А",61,2019-05-31,93,Військовий збір,Податкові платежі,363857,Центральний офіс,37413211,Україна,Військ.збір ЗП 05/2019,26003052628485,current,319.17,УДКСУ у Голосіївському районі м. Києва,38039757,юридична особа
ВОЛЯ,"м. Київ, вул. Володимирська, буд. 69А",63,2019-05-31,92,Податок на доходи,Податкові платежі,363856,Центральний офіс,37413211,Україна,ПДФО ЗП 05/2019,26003052628485,current,3830.12,УДКСУ у Голосіївському районі м. Києва,38039757,юридична особа
ВОЛЯ,"м. Київ, вул. Жилянська, буд. 23",62,2019-05-31,91,Сплата ЄСВ,Податкові платежі,363855,Центральний офіс,37413211,Україна,ЕСВ 22 %ЗП 05/2019,26003052628485,current,4681.24,ДПІ у Голосіївському районі м. Києва,39468461,юридична особа
ВОЛЯ,"Києве-Святош. р-н, смт Чабани",84,2019-05-31,190531СТ227282,"Заробітна плата, премії","Заробітна плата, лікарняні, вагітності, відрядження, компенсації",363781,Центральний офіс,37413211,Україна,Заробітна плата за 05/2019,26003052628485,current,1.93,Маляренко Антон Миколайович,,фізична особа
ВОЛЯ,"Київська обл., м. Ірпінь",84,2019-05-31,190531СТ227282,"Заробітна плата, премії","Заробітна плата, лікарняні, вагітності, відрядження, компенсації",363780,Центральний офіс,37413211,Україна,Заробітна плата за 05/2019,26003052628485,current,1.93,Горпінченко Діна Олегівна,,фізична особа
ВОЛЯ,м. Чернігів,84,2019-05-31,190531СТ227282,"Заробітна плата, премії","Заробітна плата, лікарняні, вагітності, відрядження, компенсації",363779,Центральний офіс,37413211,Україна,Заробітна плата за 05/2019,26003052628485,current,7.02,Ступак Володимир Федорович,,фізична особа
ВОЛЯ,м. Стаханiв,84,2019-05-31,190531СТ227282,"Заробітна плата, премії","Заробітна плата, лікарняні, вагітності, відрядження, компенсації",363778,Центральний офіс,37413211,Україна,Заробітна плата за 05/2019,26003052628485,current,1.93,Земськов Антон Володимирович,,фізична особа
ВОЛЯ,м. Київ,84,2019-05-31,190531СТ227282,"Заробітна плата, премії","Заробітна плата, лікарняні, вагітності, відрядження, компенсації",363777,Центральний офіс,37413211,Україна,Заробітна плата за 05/2019,26003052628485,current,4.32,Ліфар Наталія Володимирівна,,фізична особа
ВОЛЯ,"м. Київ, вул. Володимирська, буд. 69А",70,2019-05-30,5UO25EH8GY,Банківські послуги,Інші витрати,363854,Центральний офіс,37413211,Україна,Комісія банку,26003052628485,current,3.00,УДКСУ у Голосіївському районі м. Києва,38039757,юридична особа
ВОЛЯ,"м. Київ, вул. Володимирська, буд. 69А",70,2019-05-30,5UO25EH8DY,Банківські послуги,Інші витрати,363853,Центральний офіс,37413211,Україна,Комісія банку,26003052628485,current,3.00,УДКСУ у Голосіївському районі м. Києва,38039757,юридична особа
ВОЛЯ,"Сумська обл., м. Білопілля, вул. СУМСЬКА, буд. 10",59,2019-05-30,88,Грошова застава,Грошова застава,363852,Центральний офіс,37413211,Україна,Грошова застава місцевої організації на посаду міськ голови,26003052628485,current,2426.00,Білопільська міська вибоча комісія,33953333,юридична особа
ВОЛЯ,"Сумська обл., м. Білопілля, вул. СУМСЬКА, буд. 10",59,2019-05-30,89,Грошова застава,Грошова застава,363851,Центральний офіс,37413211,Україна,Грошова застава місцевої організації,26003052628485,current,2426.00,Білопільська міська вибоча комісія,33953333,юридична особа
ВОЛЯ,"Запорізька обл., Пологівський р-н, м. Пологи, вул. ЄДНОСТІ, буд. 24",59,2019-05-30,87,Грошова застава,Грошова застава,363850,Центральний офіс,37413211,Україна,Грошова застава місцевої організації,26003052628485,current,3279.00,Пологівська міська виборча комісія,33680597,юридична особа
ВОЛЯ,"м. Київ, вул. Володимирська, буд. 69А",70,2019-05-30,26O1SA0EEY,Банківські послуги,Інші витрати,363849,Центральний офіс,37413211,Україна,Комісія банку,26003052628485,current,3.00,УДКСУ у Голосіївському районі м. Києва,38039757,юридична особа
ВОЛЯ,"м. Київ, просп. Червонозоряний, буд. 51",76,2019-05-24,86,Послуги зв’язку,Послуги зв’язку,363848,Центральний офіс,37413211,Україна,Послуги зв»язку,26003052628485,current,456.00,"ПрАТ ""Київстар""",21673832,юридична особа
ВОЛЯ,"м. Київ, вул. Антонова, буд. 5А",78,2019-05-24,87,Оренда обладнання та технічних засобів,Оренда обладнання та технічних засобів,363847,Центральний офіс,37413211,Україна,Оренда кулерів рах 4221198,26003052628485,current,180.00,"""Аквамаркет сервіс""",38791982,юридична особа
ВОЛЯ,"м. Львів, пл. Катедральна, буд. 6, кв. 5",79,2019-05-24,85,"Оренда будинків і приміщень та експлуатаційні витрати (прибирання, страхування орендованих будинків, охорона, сигналізація, ремонт, вивіз сміття, тощо)",Оренда нерухомості,363846,Центральний офіс,37413211,Україна,Орендн плата за н/приміщення,26003052628485,current,30000.00,Даниленко Денис Юрійович,2787400010,фізична особа
ВОЛЯ,"м. Київ, вул. Володимирська, буд. 69А",70,2019-05-24,5OO24V972Y,Банківські послуги,Інші витрати,363845,Центральний офіс,37413211,Україна,Комісія банку,26003052628485,current,3.00,УДКСУ у Голосіївському районі м. Києва,38039757,юридична особа
ВОЛЯ,"м. Київ, вул. Володимирська, буд. 69А",70,2019-05-24,5OO24V970Y,Банківські послуги,Інші витрати,363844,Центральний офіс,37413211,Україна,Комісія банку,26003052628485,current,3.00,УДКСУ у Голосіївському районі м. Києва,38039757,юридична особа
ВОЛЯ,"м. Київ, вул. Володимирська, буд. 69А",70,2019-05-24,5OO24RTCAY,Банківські послуги,Інші витрати,363843,Центральний офіс,37413211,Україна,Комісія банку,26003052628485,current,3.00,УДКСУ у Голосіївському районі м. Києва,38039757,юридична особа
ВОЛЯ,"м. Київ, вул. Володимирська, буд. 69А",70,2019-05-23,5NO24Q8TCY,Банківські послуги,Інші витрати,363842,Центральний офіс,37413211,Україна,Комісія банку,26003052628485,current,3.00,УДКСУ у Голосіївському районі м. Києва,38039757,юридична особа
ВОЛЯ,"м. Київ, вул. Володимирська, буд. 69А",70,2019-05-23,5NO24Q8TFY,Банківські послуги,Інші витрати,363841,Центральний офіс,37413211,Україна,Комісія банку,26003052628485,current,3.00,УДКСУ у Голосіївському районі м. Києва,38039757,юридична особа
ВОЛЯ,"Київська обл., м. Бориспіль, вул. Київский шлях, буд. 98, кв. 16",79,2019-05-23,84,"Оренда будинків і приміщень та експлуатаційні витрати (прибирання, страхування орендованих будинків, охорона, сигналізація, ремонт, вивіз сміття, тощо)",Оренда нерухомості,363840,Центральний офіс,37413211,Україна,Орендн плата за н/приміщення,26003052628485,current,6000.00,Паламарчук Олена Миколаївна,3085019287,фізична особа
ВОЛЯ,"м. Київ, просп. Червонозоряний, буд. 51",76,2019-05-23,83,Послуги зв’язку,Послуги зв’язку,363839,Центральний офіс,37413211,Україна,Послуги зв»язку,26003052628485,current,3028.00,"ПрАТ ""Київстар""",21673832,юридична особа
ВОЛЯ,"м. Київ, вул. Лейпцизька, буд. 15",76,2019-05-23,86,Послуги зв’язку,Послуги зв’язку,363838,Центральний офіс,37413211,Україна,Послуги зв»язку,26003052628485,current,2919.35,"ПрАТ ""ВФ Україна""",14333937,юридична особа
ВОЛЯ,"м. Київ, вул. Володимирська, буд. 69А",70,2019-05-23,5NO24Q8QZY,Банківські послуги,Інші витрати,363837,Центральний офіс,37413211,Україна,Комісія банку,26003052628485,current,3.00,УДКСУ у Голосіївському районі м. Києва,38039757,юридична особа
ВОЛЯ,"м. Київ, вул. Володимирська, буд. 69А",70,2019-05-15,TZ005B0LQP,Банківські послуги,Інші витрати,363836,Центральний офіс,37413211,Україна,Комісія банку,26003052628485,current,30.71,УДКСУ у Голосіївському районі м. Києва,38039757,юридична особа
ВОЛЯ,"м. Київ, вул. Володимирська, буд. 69А",70,2019-05-15,5FO23IR17Y,Банківські послуги,Інші витрати,363835,Центральний офіс,37413211,Україна,Комісія банку,26003052628485,current,3.00,УДКСУ у Голосіївському районі м. Києва,38039757,юридична особа
ВОЛЯ,"м. Київ, вул. Володимирська, буд. 69А",70,2019-05-15,5FO23IR13Y,Банківські послуги,Інші витрати,363834,Центральний офіс,37413211,Україна,Комісія банку,26003052628485,current,3.00,УДКСУ у Голосіївському районі м. Києва,38039757,юридична особа
ВОЛЯ,"м. Київ, вул. Володимирська, буд. 69А",70,2019-05-15,5FO23IR1CY,Банківські послуги,Інші витрати,363833,Центральний офіс,37413211,Україна,Комісія банку,26003052628485,current,3.00,УДКСУ у Голосіївському районі м. Києва,38039757,юридична особа
ВОЛЯ,"м. Київ, вул. Володимирська, буд. 69А",61,2019-05-15,80,Військовий збір,Податкові платежі,363832,Центральний офіс,37413211,Україна,Військ.збір ЗП 05/2019 аванс,26003052628485,current,228.86,УДКСУ у Голосіївському районі м. Києва,38039757,юридична особа
ВОЛЯ,"м. Київ, вул. Володимирська, буд. 69А",63,2019-05-15,79,Податок на доходи,Податкові платежі,363831,Центральний офіс,37413211,Україна,ПДФО ЗП 05/2019 аванс,26003052628485,current,2746.28,УДКСУ у Голосіївському районі м. Києва,38039757,юридична особа
ВОЛЯ,"м. Київ, вул. Жилянська, буд. 23",62,2019-05-15,78,Сплата ЄСВ,Податкові платежі,363830,Центральний офіс,37413211,Україна,ЕСВ 22 %ЗП 05/2019 аванс,26003052628485,current,3356.58,ДПІ у Голосіївському районі м. Києва,39468461,юридична особа
ВОЛЯ,"Києве-Святош. р-н, смт Чабани",84,2019-05-15,190515СТ909186,"Заробітна плата, премії","Заробітна плата, лікарняні, вагітності, відрядження, компенсації",363776,Центральний офіс,37413211,Україна,Заробітна плата за 05/2019 (аванс),26003052628485,current,1.45,Маляренко Антон Миколайович,,фізична особа
ВОЛЯ,"Київська обл., м. Ірпінь",84,2019-05-15,190515СТ909186,"Заробітна плата, премії","Заробітна плата, лікарняні, вагітності, відрядження, компенсації",363775,Центральний офіс,37413211,Україна,Заробітна плата за 05/2019 (аванс),26003052628485,current,1.45,Горпінченко Діна Олегівна,,фізична особа
ВОЛЯ,м. Чернігів,84,2019-05-15,190515СТ909186,"Заробітна плата, премії","Заробітна плата, лікарняні, вагітності, відрядження, компенсації",363774,Центральний офіс,37413211,Україна,Заробітна плата за 05/2019 (аванс),26003052628485,current,5.18,Ступак Володимир Федорович,,фізична особа
ВОЛЯ,м. Київ,84,2019-05-15,190515СТ909186,"Заробітна плата, премії","Заробітна плата, лікарняні, вагітності, відрядження, компенсації",363773,Центральний офіс,37413211,Україна,Заробітна плата за 05/2019 (аванс),26003052628485,current,2.76,Ліфар Наталія Володимирівна,,фізична особа
ВОЛЯ,м. Стаханiв,84,2019-05-15,190515СТ909186,"Заробітна плата, премії","Заробітна плата, лікарняні, вагітності, відрядження, компенсації",363772,Центральний офіс,37413211,Україна,Заробітна плата за 05/2019 (аванс),26003052628485,current,1.45,Земськов Антон Володимирович,,фізична особа
ВОЛЯ,"м. Київ, вул. Володимирська, буд. 69А",70,2019-05-14,5EO23D2IKY,Банківські послуги,Інші витрати,363829,Центральний офіс,37413211,Україна,Комісія банку,26003052628485,current,3.00,УДКСУ у Голосіївському районі м. Києва,38039757,юридична особа
ВОЛЯ,"м. Київ, вул. Володимирська, буд. 69А",70,2019-05-14,5EO23D2I5Y,Банківські послуги,Інші витрати,363828,Центральний офіс,37413211,Україна,Комісія банку,26003052628485,current,3.00,УДКСУ у Голосіївському районі м. Києва,38039757,юридична особа
ВОЛЯ,"м. Київ, вул. Володимирська, буд. 69А",70,2019-05-14,5EO23D2IFY,Банківські послуги,Інші витрати,363827,Центральний офіс,37413211,Україна,Комісія банку,26003052628485,current,3.00,УДКСУ у Голосіївському районі м. Києва,38039757,юридична особа
ВОЛЯ,"м. Київ, вул. Володимирська, буд. 69А",70,2019-05-14,5EO23D2IAY,Банківські послуги,Інші витрати,363826,Центральний офіс,37413211,Україна,Комісія банку,26003052628485,current,3.00,УДКСУ у Голосіївському районі м. Києва,38039757,юридична особа
ВОЛЯ,"м. Київ, вул. Антонова, буд. 5А",78,2019-05-14,78,Оренда обладнання та технічних засобів,Оренда обладнання та технічних засобів,363825,Центральний офіс,37413211,Україна,Оренда кулерів рах 4359764,26003052628485,current,180.00,"""Аквамаркет сервіс""",38791982,юридична особа
ВОЛЯ,"м. Київ, вул. Антонова, буд. 5А",78,2019-05-14,77,Оренда обладнання та технічних засобів,Оренда обладнання та технічних засобів,363824,Центральний офіс,37413211,Україна,Оренда кулерів рах 4284825,26003052628485,current,180.00,"""Аквамаркет сервіс""",38791982,юридична особа
ВОЛЯ,"м. Київ, вул. Антонова, буд. 5А",78,2019-05-14,76,Оренда обладнання та технічних засобів,Оренда обладнання та технічних засобів,363823,Центральний офіс,37413211,Україна,Оренда кулерів рах 4221198,26003052628485,current,180.00,"""Аквамаркет сервіс""",38791982,юридична особа
ВОЛЯ,"м. Київ, вул. Потапова, буд. 4, оф. 106",76,2019-05-14,75,Послуги зв’язку,Послуги зв’язку,363822,Центральний офіс,37413211,Україна,Послуги інтернет,26003052628485,current,1768.00,"ТОВ ""УТЕЛС",38590278,юридична особа
ВОЛЯ,"м. Київ, вул. Володимирська, буд. 69А",70,2019-05-13,5DO2363MDY,Банківські послуги,Інші витрати,363821,Центральний офіс,37413211,Україна,Комісія банку,26003052628485,current,3.00,УДКСУ у Голосіївському районі м. Києва,38039757,юридична особа
ВОЛЯ,"м. Львів, пл. Катедральна, буд. 6, кв. 5",79,2019-05-13,74,"Оренда будинків і приміщень та експлуатаційні витрати (прибирання, страхування орендованих будинків, охорона, сигналізація, ремонт, вивіз сміття, тощо)",Оренда нерухомості,363820,Центральний офіс,37413211,Україна,Орендн плата за н/приміщення,26003052628485,current,30000.00,Даниленко Денис Юрійович,2787400010,фізична особа
ВОЛЯ,"м. Київ, вул. Потапова, буд. 4, оф. 106",76,2019-05-07,73,Послуги зв’язку,Послуги зв’язку,363819,Центральний офіс,37413211,Україна,Послуги інтернет,26003052628485,current,2600.00,"ТОВ ""УТЕЛС",38590278,юридична особа
ВОЛЯ,"м. Київ, вул. Володимирська, буд. 69А",70,2019-05-07,57O22OQNKY,Банківські послуги,Інші витрати,363818,Центральний офіс,37413211,Україна,Комісія банку,26003052628485,current,3.00,УДКСУ у Голосіївському районі м. Києва,38039757,юридична особа
ВОЛЯ,"м. Київ, вул. Грушевського, буд. 1Д",70,2019-05-02,AS94qcaoip,Банківські послуги,Інші витрати,363817,Центральний офіс,37413211,Україна,Комісія банку,26003052628485,current,100.00,"ПАТ КБ ""Приватбанк""",14360570,юридична особа
ВОЛЯ,"м. Львів, вул. Сахарова, буд. 78",70,2019-04-26,6069142,Банківські послуги,Інші витрати,363907,Сокальська районна організація,40001460,Львівська область,Комісія банку за РКО,2600501664565,current,25.00,"ПАТ ""Кредобанк""",09807862,юридична особа
ВОЛЯ,"м. Київ, вул. Володимирська, буд. 69А",70,2019-04-26,TZ006BBDGZ,Банківські послуги,Інші витрати,363816,Центральний офіс,37413211,Україна,Комісія банку,26003052628485,current,35.70,УДКСУ у Голосіївському районі м. Києва,38039757,юридична особа
ВОЛЯ,"м. Київ, вул. Володимирська, буд. 69А",70,2019-04-26,4QO21QWLWY,Банківські послуги,Інші витрати,363815,Центральний офіс,37413211,Україна,Комісія банку,26003052628485,current,3.00,УДКСУ у Голосіївському районі м. Києва,38039757,юридична особа
ВОЛЯ,"м. Київ, вул. Володимирська, буд. 69А",70,2019-04-26,4QO21QWLOY,Банківські послуги,Інші витрати,363814,Центральний офіс,37413211,Україна,Комісія банку,26003052628485,current,3.00,УДКСУ у Голосіївському районі м. Києва,38039757,юридична особа
ВОЛЯ,"м. Київ, вул. Володимирська, буд. 69А",70,2019-04-26,4QO21QWLBY,Банківські послуги,Інші витрати,363813,Центральний офіс,37413211,Україна,Комісія банку,26003052628485,current,3.00,УДКСУ у Голосіївському районі м. Києва,38039757,юридична особа
ВОЛЯ,"м. Київ, вул. Володимирська, буд. 69А",61,2019-04-26,71,Військовий збір,Податкові платежі,363812,Центральний офіс,37413211,Україна,Військ.збір ЗП 04/2019 аванс,26003052628485,current,266.10,УДКСУ у Голосіївському районі м. Києва,38039757,юридична особа
ВОЛЯ,"м. Київ, вул. Володимирська, буд. 69А",63,2019-04-26,70,Податок на доходи,Податкові платежі,363811,Центральний офіс,37413211,Україна,ПДФО ЗП 04/2019 аванс,26003052628485,current,3193.20,УДКСУ у Голосіївському районі м. Києва,38039757,юридична особа
ВОЛЯ,"м. Київ, вул. Жилянська, буд. 23",62,2019-04-26,69,Сплата ЄСВ,Податкові платежі,363810,Центральний офіс,37413211,Україна,ЕСВ 22 %ЗП 04/2019 аванс,26003052628485,current,3902.80,ДПІ у Голосіївському районі м. Києва,39468461,юридична особа
ВОЛЯ,"Київська обл., м. Ірпінь",84,2019-04-26,190426СТ628290,"Заробітна плата, премії","Заробітна плата, лікарняні, вагітності, відрядження, компенсації",363771,Центральний офіс,37413211,Україна,Заробітна плата за 04/2019,26003052628485,current,1.61,Горпінченко Діна Олегівна,,фізична особа
ВОЛЯ,м. Чернігів,84,2019-04-26,190426СТ628290,"Заробітна плата, премії","Заробітна плата, лікарняні, вагітності, відрядження, компенсації",363770,Центральний офіс,37413211,Україна,Заробітна плата за 04/2019,26003052628485,current,5.82,Ступак Володимир Федорович,,фізична особа
ВОЛЯ,м. Київ,84,2019-04-26,190426СТ628290,"Заробітна плата, премії","Заробітна плата, лікарняні, вагітності, відрядження, компенсації",363769,Центральний офіс,37413211,Україна,Заробітна плата за 04/2019,26003052628485,current,3.63,Ліфар Наталія Володимирівна,,фізична особа
ВОЛЯ,м. Стаханiв,84,2019-04-26,190426СТ628290,"Заробітна плата, премії","Заробітна плата, лікарняні, вагітності, відрядження, компенсації",363768,Центральний офіс,37413211,Україна,Заробітна плата за 04/2019,26003052628485,current,1.61,Земськов Антон Володимирович,,фізична особа
ВОЛЯ,"Києве-Святош. р-н, смт Чабани",84,2019-04-26,190426СТ628290,"Заробітна плата, премії","Заробітна плата, лікарняні, вагітності, відрядження, компенсації",363767,Центральний офіс,37413211,Україна,Заробітна плата за 04/2019,26003052628485,current,1.61,Маляренко Антон Миколайович,,фізична особа
ВОЛЯ,"м. Київ, вул. Володимирська, буд. 69А",70,2019-04-24,4OO21ETRYY,Банківські послуги,Інші витрати,363809,Центральний офіс,37413211,Україна,Комісія банку,26003052628485,current,3.00,УДКСУ у Голосіївському районі м. Києва,38039757,юридична особа
ВОЛЯ,"Київська обл., м. Бориспіль, вул. Київский шлях, буд. 98, кв. 16",79,2019-04-24,68,"Оренда будинків і приміщень та експлуатаційні витрати (прибирання, страхування орендованих будинків, охорона, сигналізація, ремонт, вивіз сміття, тощо)",Оренда нерухомості,363808,Центральний офіс,37413211,Україна,Орендн плата за н/приміщення,26003052628485,current,6000.00,Паламарчук Олена Миколаївна,3085019287,фізична особа
ВОЛЯ,"м. Київ, вул. Володимирська, буд. 69А",70,2019-04-15,TZ005B7YP9,Банківські послуги,Інші витрати,363807,Центральний офіс,37413211,Україна,Комісія банку,26003052628485,current,37.53,УДКСУ у Голосіївському районі м. Києва,38039757,юридична особа
ВОЛЯ,"м. Київ, вул. Володимирська, буд. 69А",70,2019-04-15,4FO204SOKY,Банківські послуги,Інші витрати,363806,Центральний офіс,37413211,Україна,Комісія банку,26003052628485,current,3.00,УДКСУ у Голосіївському районі м. Києва,38039757,юридична особа
ВОЛЯ,"м. Київ, вул. Володимирська, буд. 69А",70,2019-04-15,4FO204SOТY,Банківські послуги,Інші витрати,363805,Центральний офіс,37413211,Україна,Комісія банку,26003052628485,current,3.00,УДКСУ у Голосіївському районі м. Києва,38039757,юридична особа
ВОЛЯ,"м. Київ, вул. Володимирська, буд. 69А",70,2019-04-15,4FO204SO6Y,Банківські послуги,Інші витрати,363804,Центральний офіс,37413211,Україна,Комісія банку,26003052628485,current,3.00,УДКСУ у Голосіївському районі м. Києва,38039757,юридична особа
ВОЛЯ,"м. Київ, вул. Володимирська, буд. 69А",61,2019-04-15,66,Військовий збір,Податкові платежі,363803,Центральний офіс,37413211,Україна,Військ.збір ЗП 04/2019,26003052628485,current,279.72,УДКСУ у Голосіївському районі м. Києва,38039757,юридична особа
ВОЛЯ,"м. Київ, вул. Володимирська, буд. 69А",63,2019-04-15,65,Податок на доходи,Податкові платежі,363802,Центральний офіс,37413211,Україна,ПДФО ЗП 04/2019,26003052628485,current,3356.57,УДКСУ у Голосіївському районі м. Києва,38039757,юридична особа
ВОЛЯ,"м. Київ, вул. Жилянська, буд. 23",62,2019-04-15,64,Сплата ЄСВ,Податкові платежі,363801,Центральний офіс,37413211,Україна,ЕСВ 22 %ЗП 04/2019,26003052628485,current,4102.47,ДПІ у Голосіївському районі м. Києва,39468461,юридична особа
ВОЛЯ,м. Київ,84,2019-04-15,190415СТ336140,"Заробітна плата, премії","Заробітна плата, лікарняні, вагітності, відрядження, компенсації",363766,Центральний офіс,37413211,Україна,Заробітна плата за 04/2019 (аванс),26003052628485,current,3.37,Ліфар Наталія Володимирівна,,фізична особа
ВОЛЯ,"Києве-Святош. р-н, смт Чабани",84,2019-04-15,190415СТ336140,"Заробітна плата, премії","Заробітна плата, лікарняні, вагітності, відрядження, компенсації",363765,Центральний офіс,37413211,Україна,Заробітна плата за 04/2019 (аванс),26003052628485,current,1.77,Маляренко Антон Миколайович,,фізична особа
ВОЛЯ,м. Чернігів,84,2019-04-15,190415СТ336140,"Заробітна плата, премії","Заробітна плата, лікарняні, вагітності, відрядження, компенсації",363764,Центральний офіс,37413211,Україна,Заробітна плата за 04/2019 (аванс),26003052628485,current,6.32,Ступак Володимир Федорович,,фізична особа
ВОЛЯ,"Київська обл., м. Ірпінь",84,2019-04-15,190415СТ336140,"Заробітна плата, премії","Заробітна плата, лікарняні, вагітності, відрядження, компенсації",363763,Центральний офіс,37413211,Україна,Заробітна плата за 04/2019 (аванс),26003052628485,current,1.77,Горпінченко Діна Олегівна,,фізична особа
ВОЛЯ,м. Стаханiв,84,2019-04-15,190415СТ336140,"Заробітна плата, премії","Заробітна плата, лікарняні, вагітності, відрядження, компенсації",363762,Центральний офіс,37413211,Україна,Заробітна плата за 04/2019 (аванс),26003052628485,current,1.77,Земськов Антон Володимирович,,фізична особа
ВОЛЯ,"м. Львів, пл. Катедральна, буд. 6, кв. 5",79,2019-04-11,63,"Оренда будинків і приміщень та експлуатаційні витрати (прибирання, страхування орендованих будинків, охорона, сигналізація, ремонт, вивіз сміття, тощо)",Оренда нерухомості,363800,Центральний офіс,37413211,Україна,Орендн плата за н/приміщення,26003052628485,current,30000.00,Даниленко Денис Юрійович,2787400010,фізична особа
ВОЛЯ,"м. Київ, вул. Володимирська, буд. 69А",70,2019-04-11,4BO1ZURVEY,Банківські послуги,Інші витрати,363799,Центральний офіс,37413211,Україна,Комісія банку,26003052628485,current,3.00,УДКСУ у Голосіївському районі м. Києва,38039757,юридична особа
ВОЛЯ,"м. Київ, вул. Володимирська, буд. 69А",70,2019-04-09,49O1ZJFIFY,Банківські послуги,Інші витрати,363798,Центральний офіс,37413211,Україна,Комісія банку,26003052628485,current,3.00,УДКСУ у Голосіївському районі м. Києва,38039757,юридична особа
ВОЛЯ,"м. Київ, вул. Володимирська, буд. 69А",70,2019-04-09,49O1ZJFIDY,Банківські послуги,Інші витрати,363797,Центральний офіс,37413211,Україна,Комісія банку,26003052628485,current,3.00,УДКСУ у Голосіївському районі м. Києва,38039757,юридична особа
ВОЛЯ,"м. Київ, просп. Червонозоряний, буд. 51",76,2019-04-09,61,Послуги зв’язку,Послуги зв’язку,363796,Центральний офіс,37413211,Україна,Послуги зв»язку,26003052628485,current,3035.00,"ПрАТ ""Київстар""",21673832,юридична особа
ВОЛЯ,"м. Київ, вул. Лейпцизька, буд. 15",76,2019-04-09,62,Послуги зв’язку,Послуги зв’язку,363795,Центральний офіс,37413211,Україна,Послуги зв»язку,26003052628485,current,2889.99,"ПрАТ ""ВФ Україна""",14333937,юридична особа
ВОЛЯ,"м. Прилуки, вул. Гвардійська, буд. 96/32",82,2019-04-01,59,"Гонорари, в тому числі за надані консультаційні послуги","Гонорари, в тому числі за надані консультаційні послуги",363794,Центральний офіс,37413211,Україна,Інф-конс.послуги,26003052628485,current,1200.00,Крюкова Н І,2022018988,фізична особа
ВОЛЯ,"м. Київ, вул. Володимирська, буд. 69А",70,2019-04-01,41O1YJE8MY,Банківські послуги,Інші витрати,363793,Центральний офіс,37413211,Україна,Комісія банку,26003052628485,current,3.00,УДКСУ у Голосіївському районі м. Києва,38039757,юридична особа
ВОЛЯ,"м. Київ, вул. Грушевського, буд. 1Д",70,2019-04-01,AS93tc250p,Банківські послуги,Інші витрати,363792,Центральний офіс,37413211,Україна,Комісія банку,26003052628485,current,100.00,"ПАТ КБ ""Приватбанк""",14360570,юридична особа
ВОЛЯ,"м. Київ, вул. Володимирська, буд. 69А",70,2019-03-29,TZ007BTDQH,Банківські послуги,Інші витрати,363906,Центральний офіс,37413211,Україна,Комісія банку,26003052628485,current,33.73,УДКСУ у Голосіївському районі м. Києва,38039757,юридична особа
ВОЛЯ,"м. Львів, вул. Сахарова, буд. 78",70,2019-03-29,18270121,Банківські послуги,Інші витрати,363761,Сокальська районна організація,40001460,Львівська область,Комісія банку за РКО,2600501664565,current,25.00,"ПАТ ""Кредобанк""",09807862,юридична особа
ВОЛЯ,"м. Київ, вул. Грушевського, буд. 1Д",70,2019-03-29,TZ009BIZHB,Банківські послуги,Інші витрати,363756,Центральний офіс,37413211,Україна,Комісія за РКО,26003052628485,current,33.18,"ПАТ КБ ""Приватбанк""",14360570,юридична особа
ВОЛЯ,"м. Київ, вул. Жилянська, буд. 23",62,2019-03-29,55,Сплата ЄСВ,Податкові платежі,363755,Центральний офіс,37413211,Україна,ЕСВ 22 %ЗП 03/2019,26003052628485,current,3627.27,ДПІ у Голосіївському районі м. Києва,39468461,юридична особа
ВОЛЯ,"м. Київ, вул. Володимирська, буд. 69А",63,2019-03-29,56,Податок на доходи,Податкові платежі,363754,Центральний офіс,37413211,Україна,ПДФО ЗП 03/2019,26003052628485,current,2967.77,УДКСУ у Голосіївському районі м. Києва,38039757,юридична особа
ВОЛЯ,"м. Київ, вул. Володимирська, буд. 69А",61,2019-03-29,57,Військовий збір,Податкові платежі,363753,Центральний офіс,37413211,Україна,Військ.збір ЗП 03/2019,26003052628485,current,247.32,УДКСУ у Голосіївському районі м. Києва,38039757,юридична особа
ВОЛЯ,"м. Київ, вул. Володимирська, буд. 69А",70,2019-03-29,3TO1Y7982Y,Банківські послуги,Інші витрати,363752,Центральний офіс,37413211,Україна,Комісія банку,26003052628485,current,3.00,УДКСУ у Голосіївському районі м. Києва,38039757,юридична особа
ВОЛЯ,"м. Київ, вул. Володимирська, буд. 69А",70,2019-03-29,3TO1Y797UY,Банківські послуги,Інші витрати,363751,Центральний офіс,37413211,Україна,Комісія банку,26003052628485,current,3.00,УДКСУ у Голосіївському районі м. Києва,38039757,юридична особа
ВОЛЯ,"м. Київ, вул. Володимирська, буд. 69А",70,2019-03-29,3TO1Y797YY,Банківські послуги,Інші витрати,363750,Центральний офіс,37413211,Україна,Комісія банку,26003052628485,current,3.00,УДКСУ у Голосіївському районі м. Києва,38039757,юридична особа
ВОЛЯ,"Київська обл., м. Ірпінь",84,2019-03-29,190329СТ038681,"Заробітна плата, премії","Заробітна плата, лікарняні, вагітності, відрядження, компенсації",363640,Центральний офіс,37413211,Україна,Заробітна плата за 03/2019,26003052628485,current,1.69,Горпінченко Діна Олегівна,,фізична особа
ВОЛЯ,м. Стаханiв,84,2019-03-29,190329СТ038681,"Заробітна плата, премії","Заробітна плата, лікарняні, вагітності, відрядження, компенсації",363639,Центральний офіс,37413211,Україна,Заробітна плата за 03/2019,26003052628485,current,1.69,Земськов Антон Володимирович,,фізична особа
ВОЛЯ,м. Чернігів,84,2019-03-29,190329СТ038681,"Заробітна плата, премії","Заробітна плата, лікарняні, вагітності, відрядження, компенсації",363638,Центральний офіс,37413211,Україна,Заробітна плата за 03/2019,26003052628485,current,6.10,Ступак Володимир Федорович,,фізична особа
ВОЛЯ,м. Київ,84,2019-03-29,190329СТ038681,"Заробітна плата, премії","Заробітна плата, лікарняні, вагітності, відрядження, компенсації",363637,Центральний офіс,37413211,Україна,Заробітна плата за 03/2019,26003052628485,current,3.79,Ліфар Наталія Володимирівна,,фізична особа
ВОЛЯ,"м. Київ, вул. Потапова, буд. 4, оф. 106",76,2019-03-28,55,Послуги зв’язку,Послуги зв’язку,363749,Центральний офіс,37413211,Україна,Послуги інтернет,26003052628485,current,5200.00,"ТОВ ""УТЕЛС",38590278,юридична особа
ВОЛЯ,"м. Київ, вул. Межигірська, буд. 5, кв. 18",72,2019-03-28,54,"Придбання, ремонт офісної техніки та програмного забезпечення (Бухгалтерські програми, Ліга.закон, домени)",Придбання офісної техніки та програмного забезпечення,363748,Центральний офіс,37413211,Україна,Оплата за послуги у сферi iнформацiї програми 1С,26003052628485,current,3440.00,"ТОВ ""Ц.І.Т.""",37037811,юридична особа
ВОЛЯ,"м. Київ, вул. Потапова, буд. 4, оф. 106",76,2019-03-28,56,Послуги зв’язку,Послуги зв’язку,363747,Центральний офіс,37413211,Україна,Послуги інтернет,26003052628485,current,541.95,"ТОВ ""УТЕЛС",38590278,юридична особа
ВОЛЯ,"м. Київ, вул. Володимирська, буд. 69А",70,2019-03-28,3SO1Y21H1Y,Банківські послуги,Інші витрати,363746,Центральний офіс,37413211,Україна,Комісія банку,26003052628485,current,3.00,УДКСУ у Голосіївському районі м. Києва,38039757,юридична особа
ВОЛЯ,"м. Київ, вул. Володимирська, буд. 69А",70,2019-03-28,3SO1Y21GWY,Банківські послуги,Інші витрати,363745,Центральний офіс,37413211,Україна,Комісія банку,26003052628485,current,3.00,УДКСУ у Голосіївському районі м. Києва,38039757,юридична особа
ВОЛЯ,"м. Київ, вул. Володимирська, буд. 69А",70,2019-03-28,3SO1Y21H3Y,Банківські послуги,Інші витрати,363744,Центральний офіс,37413211,Україна,Комісія банку,26003052628485,current,3.00,УДКСУ у Голосіївському районі м. Києва,38039757,юридична особа
ВОЛЯ,"Київська обл., м. Бориспіль, вул. Київский шлях, буд. 98, кв. 16",79,2019-03-18,52,"Оренда будинків і приміщень та експлуатаційні витрати (прибирання, страхування орендованих будинків, охорона, сигналізація, ремонт, вивіз сміття, тощо)",Оренда нерухомості,363743,Центральний офіс,37413211,Україна,Орендн плата за н/приміщення,26003052628485,current,6000.00,Паламарчук Олена Миколаївна,3085019287,фізична особа
ВОЛЯ,"м. Київ, вул. Потапова, буд. 4, оф. 106",76,2019-03-18,51,Послуги зв’язку,Послуги зв’язку,363742,Центральний офіс,37413211,Україна,Послуги інтернет,26003052628485,current,3368.00,"ТОВ ""УТЕЛС",38590278,юридична особа
ВОЛЯ,"м. Київ, просп. Червонозоряний, буд. 51",76,2019-03-18,53,Послуги зв’язку,Послуги зв’язку,363741,Центральний офіс,37413211,Україна,Послуги зв»язку,26003052628485,current,456.00,"ПрАТ ""Київстар""",21673832,юридична особа
ВОЛЯ,"м. Київ, вул. Володимирська, буд. 69А",70,2019-03-18,3IO1WVILVY,Банківські послуги,Інші витрати,363740,Центральний офіс,37413211,Україна,Комісія банку,26003052628485,current,3.00,УДКСУ у Голосіївському районі м. Києва,38039757,юридична особа
ВОЛЯ,"м. Київ, вул. Володимирська, буд. 69А",70,2019-03-18,3IO1WVIM3Y,Банківські послуги,Інші витрати,363739,Центральний офіс,37413211,Україна,Комісія банку,26003052628485,current,3.00,УДКСУ у Голосіївському районі м. Києва,38039757,юридична особа
ВОЛЯ,"м. Київ, вул. Володимирська, буд. 69А",70,2019-03-18,3IO1WVILQY,Банківські послуги,Інші витрати,363738,Центральний офіс,37413211,Україна,Комісія банку,26003052628485,current,3.00,УДКСУ у Голосіївському районі м. Києва,38039757,юридична особа
ВОЛЯ,"м. Київ, вул. Грушевського, буд. 1Д",70,2019-03-15,TZ005BFCFP,Банківські послуги,Інші витрати,363737,Центральний офіс,37413211,Україна,Комісія за РКО,26003052628485,current,31.60,"ПАТ КБ ""Приватбанк""",14360570,юридична особа
ВОЛЯ,"м. Київ, вул. Жилянська, буд. 23",62,2019-03-15,48,Сплата ЄСВ,Податкові платежі,363736,Центральний офіс,37413211,Україна,ЕСВ 22 %ЗП 03/2019 аванс,26003052628485,current,3454.00,ДПІ у Голосіївському районі м. Києва,39468461,юридична особа
ВОЛЯ,"м. Київ, вул. Володимирська, буд. 69А",63,2019-03-15,49,Податок на доходи,Податкові платежі,363735,Центральний офіс,37413211,Україна,ПДФО ЗП 03/2019 аванс,26003052628485,current,2826.00,УДКСУ у Голосіївському районі м. Києва,38039757,юридична особа
ВОЛЯ,"м. Київ, вул. Володимирська, буд. 69А",61,2019-03-15,50,Військовий збір,Податкові платежі,363734,Центральний офіс,37413211,Україна,Військ.збір ЗП 03/2019 аванс,26003052628485,current,235.50,УДКСУ у Голосіївському районі м. Києва,38039757,юридична особа
ВОЛЯ,"м. Київ, вул. Володимирська, буд. 69А",70,2019-03-15,3FO1WL67QY,Банківські послуги,Інші витрати,363733,Центральний офіс,37413211,Україна,Комісія банку,26003052628485,current,3.00,УДКСУ у Голосіївському районі м. Києва,38039757,юридична особа
ВОЛЯ,"м. Київ, вул. Володимирська, буд. 69А",70,2019-03-15,3FO1WL67IY,Банківські послуги,Інші витрати,363732,Центральний офіс,37413211,Україна,Комісія банку,26003052628485,current,3.00,УДКСУ у Голосіївському районі м. Києва,38039757,юридична особа
ВОЛЯ,"м. Київ, вул. Володимирська, буд. 69А",70,2019-03-15,3FO1WL67CY,Банківські послуги,Інші витрати,363731,Центральний офіс,37413211,Україна,Комісія банку,26003052628485,current,3.00,УДКСУ у Голосіївському районі м. Києва,38039757,юридична особа
ВОЛЯ,м. Стаханiв,84,2019-03-15,190315СТ764640,"Заробітна плата, премії","Заробітна плата, лікарняні, вагітності, відрядження, компенсації",363636,Центральний офіс,37413211,Україна,Заробітна плата за 03/2019 (аванс),26003052628485,current,1.69,Земськов Антон Володимирович,,фізична особа
ВОЛЯ,м. Київ,84,2019-03-15,190315СТ764640,"Заробітна плата, премії","Заробітна плата, лікарняні, вагітності, відрядження, компенсації",363635,Центральний офіс,37413211,Україна,Заробітна плата за 03/2019 (аванс),26003052628485,current,3.22,Ліфар Наталія Володимирівна,,фізична особа
ВОЛЯ,"Київська обл., м. Ірпінь",84,2019-03-15,190315СТ764640,"Заробітна плата, премії","Заробітна плата, лікарняні, вагітності, відрядження, компенсації",363634,Центральний офіс,37413211,Україна,Заробітна плата за 03/2019 (аванс),26003052628485,current,1.69,Горпінченко Діна Олегівна,,фізична особа
ВОЛЯ,м. Чернігів,84,2019-03-15,190315СТ764640,"Заробітна плата, премії","Заробітна плата, лікарняні, вагітності, відрядження, компенсації",363633,Центральний офіс,37413211,Україна,Заробітна плата за 03/2019 (аванс),26003052628485,current,6.04,Ступак Володимир Федорович,,фізична особа
ВОЛЯ,"м. Київ, вул. Лейпцизька, буд. 15",76,2019-03-14,47,Послуги зв’язку,Послуги зв’язку,363730,Центральний офіс,37413211,Україна,Послуги зв»язку,26003052628485,current,2784.31,"ПрАТ ""ВФ Україна""",14333937,юридична особа
ВОЛЯ,"м. Київ, вул. Володимирська, буд. 69А",70,2019-03-14,3EO1WE5JTY,Банківські послуги,Інші витрати,363729,Центральний офіс,37413211,Україна,Комісія банку,26003052628485,current,3.00,УДКСУ у Голосіївському районі м. Києва,38039757,юридична особа
ВОЛЯ,"м. Київ, просп. Червонозоряний, буд. 51",76,2019-03-14,46,Послуги зв’язку,Послуги зв’язку,363728,Центральний офіс,37413211,Україна,Послуги зв»язку,26003052628485,current,3028.00,"ПрАТ ""Київстар""",21673832,юридична особа
ВОЛЯ,"м. Київ, вул. Володимирська, буд. 69А",70,2019-03-14,3EO1WE56EY,Банківські послуги,Інші витрати,363727,Центральний офіс,37413211,Україна,Комісія банку,26003052628485,current,3.00,УДКСУ у Голосіївському районі м. Києва,38039757,юридична особа
ВОЛЯ,"м. Київ, вул. Володимирська, буд. 69А",70,2019-03-04,34O1V605RY,Банківські послуги,Інші витрати,363726,Центральний офіс,37413211,Україна,Комісія банку,26003052628485,current,3.00,УДКСУ у Голосіївському районі м. Києва,38039757,юридична особа
ВОЛЯ,"м. Київ, вул. Здолбунівська, буд. 7Д",76,2019-03-04,45,Послуги зв’язку,Послуги зв’язку,363725,Центральний офіс,37413211,Україна,Послуги зв»язку,26003052628485,current,1645.00,"ТОВ ""Бінотел""",38021032,юридична особа
ВОЛЯ,"м. Прилуки, вул. Гвардійська, буд. 96/32",82,2019-03-04,44,"Гонорари, в тому числі за надані консультаційні послуги","Гонорари, в тому числі за надані консультаційні послуги",363724,Центральний офіс,37413211,Україна,Інф-конс.послуги,26003052628485,current,400.00,Крюкова Н І,2022018988,фізична особа
ВОЛЯ,"м. Київ, вул. Володимирська, буд. 69А",70,2019-03-01,AS92s3vjpp,Банківські послуги,Інші витрати,363723,Центральний офіс,37413211,Україна,Комісія банку,26003052628485,current,100.00,УДКСУ у Голосіївському районі м. Києва,38039757,юридична особа
ВОЛЯ,"м. Львів, вул. Сахарова, буд. 78",70,2019-02-28,11939239,Банківські послуги,Інші витрати,363760,Сокальська районна організація,40001460,Львівська область,Комісія банку за РКО,2600501664565,current,25.00,"ПАТ ""Кредобанк""",09807862,юридична особа
ВОЛЯ,"м. Київ, вул. Грушевського, буд. 1Д",70,2019-02-28,TZ008BQXWR,Банківські послуги,Інші витрати,363722,Центральний офіс,37413211,Україна,Комісія за РКО,26003052628485,current,30.02,"ПАТ КБ ""Приватбанк""",14360570,юридична особа
ВОЛЯ,"м. Київ, вул. Жилянська, буд. 23",62,2019-02-28,40,Сплата ЄСВ,Податкові платежі,363721,Центральний офіс,37413211,Україна,ЕСВ 22 %ЗП 02/2019,26003052628485,current,3281.87,ДПІ у Голосіївському районі м. Києва,39468461,юридична особа
ВОЛЯ,"м. Київ, вул. Володимирська, буд. 69А",63,2019-02-28,41,Податок на доходи,Податкові платежі,363720,Центральний офіс,37413211,Україна,ПДФО ЗП 02/2019,26003052628485,current,2685.17,УДКСУ у Голосіївському районі м. Києва,38039757,юридична особа
ВОЛЯ,"м. Київ, вул. Володимирська, буд. 69А",61,2019-02-28,42,Військовий збір,Податкові платежі,363719,Центральний офіс,37413211,Україна,Військ.збір ЗП 02/2019,26003052628485,current,223.77,УДКСУ у Голосіївському районі м. Києва,38039757,юридична особа
ВОЛЯ,"м. Київ, вул. Володимирська, буд. 69А",70,2019-02-28,2SO1UU2E4Y,Банківські послуги,Інші витрати,363718,Центральний офіс,37413211,Україна,Комісія банку,26003052628485,current,3.00,УДКСУ у Голосіївському районі м. Києва,38039757,юридична особа
ВОЛЯ,"м. Київ, вул. Володимирська, буд. 69А",70,2019-02-28,2SO1UU2DVY,Банківські послуги,Інші витрати,363717,Центральний офіс,37413211,Україна,Комісія банку,26003052628485,current,3.00,УДКСУ у Голосіївському районі м. Києва,38039757,юридична особа
ВОЛЯ,"м. Київ, вул. Володимирська, буд. 69А",70,2019-02-28,2SO1UU2E7Y,Банківські послуги,Інші витрати,363716,Центральний офіс,37413211,Україна,Комісія банку,26003052628485,current,3.00,УДКСУ у Голосіївському районі м. Києва,38039757,юридична особа
ВОЛЯ,"Київська обл., м. Ірпінь",84,2019-02-28,190228СТ477268,"Заробітна плата, премії","Заробітна плата, лікарняні, вагітності, відрядження, компенсації",363632,Центральний офіс,37413211,Україна,Заробітна плата за 02/2019,26003052628485,current,1.52,Горпінченко Діна Олегівна,,фізична особа
ВОЛЯ,м. Чернігів,84,2019-02-28,190228СТ477268,"Заробітна плата, премії","Заробітна плата, лікарняні, вагітності, відрядження, компенсації",363631,Центральний офіс,37413211,Україна,Заробітна плата за 02/2019,26003052628485,current,5.50,Ступак Володимир Федорович,,фізична особа
ВОЛЯ,м. Стаханiв,84,2019-02-28,190228СТ477268,"Заробітна плата, премії","Заробітна плата, лікарняні, вагітності, відрядження, компенсації",363630,Центральний офіс,37413211,Україна,Заробітна плата за 02/2019,26003052628485,current,1.52,Земськов Антон Володимирович,,фізична особа
ВОЛЯ,м. Київ,84,2019-02-28,190228СТ477268,"Заробітна плата, премії","Заробітна плата, лікарняні, вагітності, відрядження, компенсації",363629,Центральний офіс,37413211,Україна,Заробітна плата за 02/2019,26003052628485,current,3.47,Ліфар Наталія Володимирівна,,фізична особа
ВОЛЯ,"м. Київ, вул. Авіаконструктора Антонова, б. 2/32, коп. 8, кв. 27",69,2019-02-21,39,Організація заходів та інші організаційні послуги,Організація заходів та інші організаційні послуги,363715,Центральний офіс,37413211,Україна,Оплата за обслуговування заходу,26003052628485,current,28575.00,Кінзерська А В,3044619964,фізична особа
ВОЛЯ,"м. Київ, вул. Володимирська, буд. 69А",70,2019-02-21,2LO1U51GEY,Банківські послуги,Інші витрати,363714,Центральний офіс,37413211,Україна,Комісія банку,26003052628485,current,3.00,УДКСУ у Голосіївському районі м. Києва,38039757,юридична особа
ВОЛЯ,"Київська обл., м. Бориспіль, вул. Київский шлях, буд. 98, кв. 16",79,2019-02-19,37,"Оренда будинків і приміщень та експлуатаційні витрати (прибирання, страхування орендованих будинків, охорона, сигналізація, ремонт, вивіз сміття, тощо)",Оренда нерухомості,363713,Центральний офіс,37413211,Україна,Орендн плата за н/приміщення,26003052628485,current,6000.00,Паламарчук Олена Миколаївна,3085019287,фізична особа
ВОЛЯ,"м. Київ, вул. Потапова, буд. 4, оф. 106",76,2019-02-19,38,Послуги зв’язку,Послуги зв’язку,363712,Центральний офіс,37413211,Україна,Послуги інтернет,26003052628485,current,3358.00,"ТОВ ""УТЕЛС",38590278,юридична особа
ВОЛЯ,"м. Київ, вул. Володимирська, буд. 69А",70,2019-02-19,2JO1TQJM6Y,Банківські послуги,Інші витрати,363711,Центральний офіс,37413211,Україна,Комісія банку,26003052628485,current,3.00,УДКСУ у Голосіївському районі м. Києва,38039757,юридична особа
ВОЛЯ,"м. Київ, вул. Володимирська, буд. 69А",70,2019-02-19,2JO1TQJMCY,Банківські послуги,Інші витрати,363710,Центральний офіс,37413211,Україна,Комісія банку,26003052628485,current,3.00,УДКСУ у Голосіївському районі м. Києва,38039757,юридична особа
ВОЛЯ,"м. Київ, вул. Грушевського, буд. 1Д",70,2019-02-15,TZ005BNO1C,Банківські послуги,Інші витрати,363709,Центральний офіс,37413211,Україна,Комісія за РКО,26003052628485,current,34.76,"ПАТ КБ ""Приватбанк""",14360570,юридична особа
ВОЛЯ,"м. Київ, вул. Володимирська, буд. 69А",70,2019-02-15,2FO1TAPMCY,Банківські послуги,Інші витрати,363708,Центральний офіс,37413211,Україна,Комісія банку,26003052628485,current,3.00,УДКСУ у Голосіївському районі м. Києва,38039757,юридична особа
ВОЛЯ,"м. Київ, вул. Володимирська, буд. 69А",70,2019-02-15,2FO1TAPM9Y,Банківські послуги,Інші витрати,363707,Центральний офіс,37413211,Україна,Комісія банку,26003052628485,current,3.00,УДКСУ у Голосіївському районі м. Києва,38039757,юридична особа
ВОЛЯ,"м. Київ, вул. Володимирська, буд. 69А",70,2019-02-15,2FO1TAPM6Y,Банківські послуги,Інші витрати,363706,Центральний офіс,37413211,Україна,Комісія банку,26003052628485,current,3.00,УДКСУ у Голосіївському районі м. Києва,38039757,юридична особа
ВОЛЯ,"м. Київ, вул. Жилянська, буд. 23",62,2019-02-15,33,Сплата ЄСВ,Податкові платежі,363705,Центральний офіс,37413211,Україна,ЕСВ 22 %ЗП 02/2019 аванс,26003052628485,current,3799.40,ДПІ у Голосіївському районі м. Києва,39468461,юридична особа
ВОЛЯ,"м. Київ, вул. Володимирська, буд. 69А",63,2019-02-15,34,Податок на доходи,Податкові платежі,363704,Центральний офіс,37413211,Україна,ПДФО ЗП 02/2019 аванс,26003052628485,current,3108.60,УДКСУ у Голосіївському районі м. Києва,38039757,юридична особа
ВОЛЯ,"м. Київ, вул. Володимирська, буд. 69А",61,2019-02-15,35,Військовий збір,Податкові платежі,363703,Центральний офіс,37413211,Україна,Військ.збір ЗП 02/2019 аванс,26003052628485,current,259.05,УДКСУ у Голосіївському районі м. Києва,38039757,юридична особа
ВОЛЯ,"Київська обл., м. Ірпінь",84,2019-02-15,190215СТ225441,"Заробітна плата, премії","Заробітна плата, лікарняні, вагітності, відрядження, компенсації",363628,Центральний офіс,37413211,Україна,Заробітна плата за 02/2019 (аванс),26003052628485,current,1.86,Горпінченко Діна Олегівна,,фізична особа
ВОЛЯ,м. Чернігів,84,2019-02-15,190215СТ225441,"Заробітна плата, премії","Заробітна плата, лікарняні, вагітності, відрядження, компенсації",363627,Центральний офіс,37413211,Україна,Заробітна плата за 02/2019 (аванс),26003052628485,current,6.64,Ступак Володимир Федорович,,фізична особа
ВОЛЯ,м. Київ,84,2019-02-15,190215СТ225441,"Заробітна плата, премії","Заробітна плата, лікарняні, вагітності, відрядження, компенсації",363626,Центральний офіс,37413211,Україна,Заробітна плата за 02/2019 (аванс),26003052628485,current,3.54,Ліфар Наталія Володимирівна,,фізична особа
ВОЛЯ,м. Стаханiв,84,2019-02-15,190215СТ225441,"Заробітна плата, премії","Заробітна плата, лікарняні, вагітності, відрядження, компенсації",363625,Центральний офіс,37413211,Україна,Заробітна плата за 02/2019 (аванс),26003052628485,current,1.86,Земськов Антон Володимирович,,фізична особа
ВОЛЯ,"м. Київ, вул. Лейпцизька, буд. 15",76,2019-02-12,32,Послуги зв’язку,Послуги зв’язку,363702,Центральний офіс,37413211,Україна,Послуги зв»язку,26003052628485,current,2804.11,"ПрАТ ""ВФ Україна""",14333937,юридична особа
ВОЛЯ,"м. Київ, вул. Володимирська, буд. 69А",70,2019-02-12,2CO1SY05SY,Банківські послуги,Інші витрати,363701,Центральний офіс,37413211,Україна,Комісія банку,26003052628485,current,3.00,УДКСУ у Голосіївському районі м. Києва,38039757,юридична особа
ВОЛЯ,"м. Київ, вул. Авіаконструктора Антонова, б. 2/32, коп. 8, кв. 27",69,2019-02-06,31,Організація заходів та інші організаційні послуги,Організація заходів та інші організаційні послуги,363700,Центральний офіс,37413211,Україна,Оплата за обслуговування заходу,26003052628485,current,28575.00,Кінзерська А В,3044619964,фізична особа
ВОЛЯ,"м. Київ, вул. Володимирська, буд. 69А",70,2019-02-06,26O1SA0EEY,Банківські послуги,Інші витрати,363699,Центральний офіс,37413211,Україна,Комісія банку,26003052628485,current,3.00,УДКСУ у Голосіївському районі м. Києва,38039757,юридична особа
ВОЛЯ,"м. Київ, вул. Здолбунівська, буд. 7Д",76,2019-02-04,30,Послуги зв’язку,Послуги зв’язку,363698,Центральний офіс,37413211,Україна,Послуги зв»язку,26003052628485,current,1645.00,"ТОВ ""Бінотел""",38021032,юридична особа
ВОЛЯ,"м. Київ, просп. Червонозоряний, буд. 51",76,2019-02-04,31,Послуги зв’язку,Послуги зв’язку,363697,Центральний офіс,37413211,Україна,Послуги зв»язку,26003052628485,current,1247.87,"ПрАТ ""Київстар""",21673832,юридична особа
ВОЛЯ,"м. Київ, вул. Володимирська, буд. 69А",70,2019-02-04,24O1RXSJOY,Банківські послуги,Інші витрати,363696,Центральний офіс,37413211,Україна,Комісія банку,26003052628485,current,3.00,УДКСУ у Голосіївському районі м. Києва,38039757,юридична особа
ВОЛЯ,"м. Київ, вул. Грушевського, буд. 1Д",70,2019-02-01,AN91v05bfp,Банківські послуги,Інші витрати,363758,Київська міська організація,37716506,Київ,Комісія за РКО,26003052646188,current,98.97,"ПАТ КБ ""Приватбанк""",14360570,юридична особа
ВОЛЯ,"м. Прилуки, вул. Гвардійська, буд. 96/32",82,2019-02-01,29,"Гонорари, в тому числі за надані консультаційні послуги","Гонорари, в тому числі за надані консультаційні послуги",363695,Центральний офіс,37413211,Україна,Інф-конс.послуги,26003052628485,current,400.00,Крюкова Н І,2022018988,фізична особа
ВОЛЯ,"м. Київ, вул. Володимирська, буд. 69А",70,2019-02-01,21O1RW49QY,Банківські послуги,Інші витрати,363694,Центральний офіс,37413211,Україна,Комісія банку,26003052628485,current,3.00,УДКСУ у Голосіївському районі м. Києва,38039757,юридична особа
ВОЛЯ,"м. Київ, вул. Володимирська, буд. 69А",70,2019-02-01,21O1RW49QX,Банківські послуги,Інші витрати,363693,Центральний офіс,37413211,Україна,Комісія банку,26003052628485,current,0.80,УДКСУ у Голосіївському районі м. Києва,38039757,юридична особа
ВОЛЯ,"м. Київ, вул. Володимирська, буд. 69А",70,2019-02-01,AS91v070hp,Банківські послуги,Інші витрати,363692,Центральний офіс,37413211,Україна,Комісія банку,26003052628485,current,100.00,УДКСУ у Голосіївському районі м. Києва,38039757,юридична особа
ВОЛЯ,"м. Львів, вул. Сахарова, буд. 78",70,2019-01-31,6069142,Банківські послуги,Інші витрати,363759,Сокальська районна організація,40001460,Львівська область,Комісія банку за РКО,2600501664565,current,25.00,"ПАТ ""Кредобанк""",09807862,юридична особа
ВОЛЯ,"м. Київ, вул. Грушевського, буд. 1Д",70,2019-01-31,TZ001B39ZR,Банківські послуги,Інші витрати,363691,Центральний офіс,37413211,Україна,Комісія за РКО,26003052628485,current,43.69,"ПАТ КБ ""Приватбанк""",14360570,юридична особа
ВОЛЯ,"м. Київ, вул. Жилянська, буд. 23",62,2019-01-31,25,Сплата ЄСВ,Податкові платежі,363690,Центральний офіс,37413211,Україна,ЕСВ 22 %ЗП 01/2019,26003052628485,current,4120.70,ДПІ у Голосіївському районі м. Києва,39468461,юридична особа
ВОЛЯ,"м. Київ, вул. Володимирська, буд. 69А",63,2019-01-31,26,Податок на доходи,Податкові платежі,363689,Центральний офіс,37413211,Україна,ПДФО ЗП 01/2019,26003052628485,current,3907.71,УДКСУ у Голосіївському районі м. Києва,38039757,юридична особа
ВОЛЯ,"м. Київ, вул. Володимирська, буд. 69А",61,2019-01-31,27,Військовий збір,Податкові платежі,363688,Центральний офіс,37413211,Україна,Військ.збір ЗП 01/2019,26003052628485,current,325.65,УДКСУ у Голосіївському районі м. Києва,38039757,юридична особа
ВОЛЯ,"м. Київ, вул. Жилянська, буд. 23",62,2019-01-31,24,Сплата ЄСВ,Податкові платежі,363687,Центральний офіс,37413211,Україна,"ЕСВ 8,41 %ЗП 01/2019",26003052628485,current,250.53,ДПІ у Голосіївському районі м. Києва,39468461,юридична особа
ВОЛЯ,"м. Київ, вул. Володимирська, буд. 69А",70,2019-01-31,1VO1RM9IQY,Банківські послуги,Інші витрати,363686,Центральний офіс,37413211,Україна,Комісія банку,26003052628485,current,3.00,УДКСУ у Голосіївському районі м. Києва,38039757,юридична особа
ВОЛЯ,"м. Київ, вул. Володимирська, буд. 69А",70,2019-01-31,1VO1RM9INY,Банківські послуги,Інші витрати,363685,Центральний офіс,37413211,Україна,Комісія банку,26003052628485,current,3.00,УДКСУ у Голосіївському районі м. Києва,38039757,юридична особа
ВОЛЯ,"м. Київ, вул. Володимирська, буд. 69А",70,2019-01-31,1VO1RM9IFY,Банківські послуги,Інші витрати,363684,Центральний офіс,37413211,Україна,Комісія банку,26003052628485,current,3.00,УДКСУ у Голосіївському районі м. Києва,38039757,юридична особа
ВОЛЯ,"м. Київ, вул. Володимирська, буд. 69А",70,2019-01-31,1VO1RM9IJY,Банківські послуги,Інші витрати,363683,Центральний офіс,37413211,Україна,Комісія банку,26003052628485,current,3.00,УДКСУ у Голосіївському районі м. Києва,38039757,юридична особа
ВОЛЯ,"Київська обл., м. Ірпінь",84,2019-01-31,190131СТ962093,"Заробітна плата, премії","Заробітна плата, лікарняні, вагітності, відрядження, компенсації",363624,Центральний офіс,37413211,Україна,Заробітна плата за 01/2019,26003052628485,current,1.93,Горпінченко Діна Олегівна,,фізична особа
ВОЛЯ,м. Чернігів,84,2019-01-31,190131СТ962093,"Заробітна плата, премії","Заробітна плата, лікарняні, вагітності, відрядження, компенсації",363623,Центральний офіс,37413211,Україна,Заробітна плата за 01/2019,26003052628485,current,6.97,Ступак Володимир Федорович,,фізична особа
ВОЛЯ,м. Київ,84,2019-01-31,190131СТ962093,"Заробітна плата, премії","Заробітна плата, лікарняні, вагітності, відрядження, компенсації",363622,Центральний офіс,37413211,Україна,Заробітна плата за 01/2019,26003052628485,current,4.25,Ліфар Наталія Володимирівна,,фізична особа
ВОЛЯ,м. Стаханiв,84,2019-01-31,190131СТ962093,"Заробітна плата, премії","Заробітна плата, лікарняні, вагітності, відрядження, компенсації",363621,Центральний офіс,37413211,Україна,Заробітна плата за 01/2019,26003052628485,current,1.93,Земськов Антон Володимирович,,фізична особа
ВОЛЯ,м. Київ,84,2019-01-31,190131СТ962093,"Заробітна плата, премії","Заробітна плата, лікарняні, вагітності, відрядження, компенсації",363620,Центральний офіс,37413211,Україна,Заробітна плата за 01/2019,26003052628485,current,2.40,Строкова Анна Олексіївна,,фізична особа
ВОЛЯ,"м. Київ, вул. Антонова, буд. 5А",78,2019-01-29,23,Оренда обладнання та технічних засобів,Оренда обладнання та технічних засобів,363682,Центральний офіс,37413211,Україна,Оренда кулерів рах 4153522,26003052628485,current,180.00,"""Аквамаркет сервіс""",38791982,юридична особа
ВОЛЯ,"м. Київ, вул. Володимирська, буд. 69А",70,2019-01-29,1TO1RE17PY,Банківські послуги,Інші витрати,363681,Центральний офіс,37413211,Україна,Комісія банку,26003052628485,current,3.00,УДКСУ у Голосіївському районі м. Києва,38039757,юридична особа
ВОЛЯ,"м. Київ, просп. Перемоги, буд. 40Б",78,2019-01-28,22,Оренда обладнання та технічних засобів,Оренда обладнання та технічних засобів,363680,Центральний офіс,37413211,Україна,Оплата за послуги облаштування примiщення обладнанням,26003052628485,current,71243.28,"ПП ""Експосервіс""",25403408,юридична особа
ВОЛЯ,"м. Київ, вул. Володимирська, буд. 69А",70,2019-01-28,1SO1R7UBIY,Банківські послуги,Інші витрати,363679,Центральний офіс,37413211,Україна,Комісія банку,26003052628485,current,3.00,УДКСУ у Голосіївському районі м. Києва,38039757,юридична особа
ВОЛЯ,"м. Київ, вул. ОЛЕКСІЇВСЬКА, буд. 10/12, кв. 25",69,2019-01-25,21,Організація заходів та інші організаційні послуги,Організація заходів та інші організаційні послуги,363678,Центральний офіс,37413211,Україна,Оплата за органiзацiю та здiйснення заходiв охорони примiщення Виставкового залу,26003052628485,current,8800.00,"ТОВ ""Кіборги""",32662247,юридична особа
ВОЛЯ,"м. Київ, вул. Кирилівська, буд. 102",60,2019-01-24,19,Інші податки,Податкові платежі,363677,Центральний офіс,37413211,Україна,Сплата за обробку данних для видачi сертифiкатiв ЕЦП,26003052628485,current,92.00,"ТОВ ""Центр сертифікації ключів ""Україна""",36865753,юридична особа
ВОЛЯ,"м. Київ, вул. Володимирська, буд. 69А",70,2019-01-24,1OO1QYJ6UY,Банківські послуги,Інші витрати,363676,Центральний офіс,37413211,Україна,Комісія банку,26003052628485,current,3.00,УДКСУ у Голосіївському районі м. Києва,38039757,юридична особа
ВОЛЯ,"м. Київ, просп. Перемоги, буд. 40Б",43,2019-01-22,18,Інші витрати,Інші витрати,363675,Центральний офіс,37413211,Україна,Оплата за додатковi послуги,26003052628485,current,5500.00,"ТОВ ""АККО Інтернешнл""",19257351,юридична особа
ВОЛЯ,"м. Київ, вул. Володимирська, буд. 69А",70,2019-01-22,1MO1QOXGBY,Банківські послуги,Інші витрати,363674,Центральний офіс,37413211,Україна,Комісія банку,26003052628485,current,3.00,УДКСУ у Голосіївському районі м. Києва,38039757,юридична особа
ВОЛЯ,"м. Київ, вул. Антонова, буд. 5А",78,2019-01-18,17,Оренда обладнання та технічних засобів,Оренда обладнання та технічних засобів,363673,Центральний офіс,37413211,Україна,Оренда кулерів рах 4074053,26003052628485,current,180.00,"""Аквамаркет сервіс""",38791982,юридична особа
ВОЛЯ,"м. Київ, вул. Антонова, буд. 5А",78,2019-01-18,16,Оренда обладнання та технічних засобів,Оренда обладнання та технічних засобів,363672,Центральний офіс,37413211,Україна,Оренда кулерів рах 4010978,26003052628485,current,180.00,"""Аквамаркет сервіс""",38791982,юридична особа
ВОЛЯ,"м. Київ, вул. Володимирська, буд. 69А",70,2019-01-18,1IO1QD2UJY,Банківські послуги,Інші витрати,363671,Центральний офіс,37413211,Україна,Комісія банку,26003052628485,current,3.00,УДКСУ у Голосіївському районі м. Києва,38039757,юридична особа
ВОЛЯ,"м. Київ, вул. Володимирська, буд. 69А",70,2019-01-18,1IO1QD2UOY,Банківські послуги,Інші витрати,363670,Центральний офіс,37413211,Україна,Комісія банку,26003052628485,current,3.00,УДКСУ у Голосіївському районі м. Києва,38039757,юридична особа
ВОЛЯ,"Київська обл., м. Бориспіль, вул. Київский шлях, буд. 98, кв. 16",79,2019-01-18,15,"Оренда будинків і приміщень та експлуатаційні витрати (прибирання, страхування орендованих будинків, охорона, сигналізація, ремонт, вивіз сміття, тощо)",Оренда нерухомості,363669,Центральний офіс,37413211,Україна,Орендн плата за н/приміщення,26003052628485,current,6000.00,Паламарчук Олена Миколаївна,3085019287,фізична особа
ВОЛЯ,"м. Київ, вул. Володимирська, буд. 69А",70,2019-01-18,1IO1QCXXCY,Банківські послуги,Інші витрати,363668,Центральний офіс,37413211,Україна,Комісія банку,26003052628485,current,3.00,УДКСУ у Голосіївському районі м. Києва,38039757,юридична особа
ВОЛЯ,"м. Київ, просп. Перемоги, буд. 40Б",69,2019-01-16,14,Організація заходів та інші організаційні послуги,Організація заходів та інші організаційні послуги,363667,Центральний офіс,37413211,Україна,Оплата за оренди виставкового залу,26003052628485,current,136000.00,"ТОВ ""АККО Інтернешнл""",19257351,юридична особа
ВОЛЯ,"м. Київ, вул. Володимирська, буд. 69А",70,2019-01-16,1GO1Q2E4FY,Банківські послуги,Інші витрати,363666,Центральний офіс,37413211,Україна,Комісія банку,26003052628485,current,3.00,УДКСУ у Голосіївському районі м. Києва,38039757,юридична особа
ВОЛЯ,"м. Київ, вул. Авіаконструктора Антонова, б. 2/32, коп. 8, кв. 27",69,2019-01-15,12,Організація заходів та інші організаційні послуги,Організація заходів та інші організаційні послуги,363665,Центральний офіс,37413211,Україна,Оплата за обслуговування заходу,26003052628485,current,28575.00,Кінзерська А В,3044619964,фізична особа
ВОЛЯ,"м. Київ, вул. Потапова, буд. 4, оф. 106",76,2019-01-15,13,Послуги зв’язку,Послуги зв’язку,363664,Центральний офіс,37413211,Україна,Послуги інтернет,26003052628485,current,3358.00,"ТОВ ""УТЕЛС",38590278,юридична особа
ВОЛЯ,"м. Київ, вул. Володимирська, буд. 69А",70,2019-01-15,1FO1PXSJTY,Банківські послуги,Інші витрати,363663,Центральний офіс,37413211,Україна,Комісія банку,26003052628485,current,3.00,УДКСУ у Голосіївському районі м. Києва,38039757,юридична особа
ВОЛЯ,"м. Київ, вул. Володимирська, буд. 69А",70,2019-01-15,1FO1PXSJQY,Банківські послуги,Інші витрати,363662,Центральний офіс,37413211,Україна,Комісія банку,26003052628485,current,3.00,УДКСУ у Голосіївському районі м. Києва,38039757,юридична особа
ВОЛЯ,"м. Київ, вул. Грушевського, буд. 1Д",70,2019-01-15,TZ005BVMEI,Банківські послуги,Інші витрати,363661,Центральний офіс,37413211,Україна,Комісія за РКО,26003052628485,current,30.71,"ПАТ КБ ""Приватбанк""",14360570,юридична особа
ВОЛЯ,"м. Київ, вул. Жилянська, буд. 23",62,2019-01-15,7,Сплата ЄСВ,Податкові платежі,363660,Центральний офіс,37413211,Україна,ЕСВ 22 %ЗП 01/2019 аванс,26003052628485,current,2960.57,ДПІ у Голосіївському районі м. Києва,39468461,юридична особа
ВОЛЯ,"м. Київ, вул. Володимирська, буд. 69А",63,2019-01-15,9,Податок на доходи,Податкові платежі,363659,Центральний офіс,37413211,Україна,ПДФО ЗП 01/2019 аванс,26003052628485,current,2746.28,УДКСУ у Голосіївському районі м. Києва,38039757,юридична особа
ВОЛЯ,"м. Київ, вул. Володимирська, буд. 69А",61,2019-01-15,10,Військовий збір,Податкові платежі,363658,Центральний офіс,37413211,Україна,Військ.збір ЗП 01/2019 аванс,26003052628485,current,228.86,УДКСУ у Голосіївському районі м. Києва,38039757,юридична особа
ВОЛЯ,"м. Київ, вул. Жилянська, буд. 23",62,2019-01-15,8,Сплата ЄСВ,Податкові платежі,363657,Центральний офіс,37413211,Україна,"ЕСВ 8,41 %ЗП 01/2019 аванс",26003052628485,current,151.38,ДПІ у Голосіївському районі м. Києва,39468461,юридична особа
ВОЛЯ,"м. Київ, вул. Володимирська, буд. 69А",70,2019-01-15,1FO1PTX80Y,Банківські послуги,Інші витрати,363656,Центральний офіс,37413211,Україна,Комісія банку,26003052628485,current,3.00,УДКСУ у Голосіївському районі м. Києва,38039757,юридична особа
ВОЛЯ,"м. Київ, вул. Володимирська, буд. 69А",70,2019-01-15,1FO1PTX7WY,Банківські послуги,Інші витрати,363655,Центральний офіс,37413211,Україна,Комісія банку,26003052628485,current,3.00,УДКСУ у Голосіївському районі м. Києва,38039757,юридична особа
ВОЛЯ,"м. Київ, вул. Володимирська, буд. 69А",70,2019-01-15,1FO1PTX7VY,Банківські послуги,Інші витрати,363654,Центральний офіс,37413211,Україна,Комісія банку,26003052628485,current,3.00,УДКСУ у Голосіївському районі м. Києва,38039757,юридична особа
ВОЛЯ,"м. Київ, вул. Володимирська, буд. 69А",70,2019-01-15,1FO1PTX7XY,Банківські послуги,Інші витрати,363653,Центральний офіс,37413211,Україна,Комісія банку,26003052628485,current,3.00,УДКСУ у Голосіївському районі м. Києва,38039757,юридична особа
ВОЛЯ,м. Київ,84,2019-01-15,190115СТ664310,"Заробітна плата, премії","Заробітна плата, лікарняні, вагітності, відрядження, компенсації",363619,Центральний офіс,37413211,Україна,Заробітна плата за 01/2019 (аванс),26003052628485,current,2.76,Ліфар Наталія Володимирівна,,фізична особа
ВОЛЯ,м. Київ,84,2019-01-15,190115СТ664310,"Заробітна плата, премії","Заробітна плата, лікарняні, вагітності, відрядження, компенсації",363618,Центральний офіс,37413211,Україна,Заробітна плата за 01/2019 (аванс),26003052628485,current,1.45,Строкова Анна Олексіївна,,фізична особа
ВОЛЯ,м. Чернігів,84,2019-01-15,190115СТ664310,"Заробітна плата, премії","Заробітна плата, лікарняні, вагітності, відрядження, компенсації",363617,Центральний офіс,37413211,Україна,Заробітна плата за 01/2019 (аванс),26003052628485,current,5.18,Ступак Володимир Федорович,,фізична особа
ВОЛЯ,"Київська обл., м. Ірпінь",84,2019-01-15,190115СТ664310,"Заробітна плата, премії","Заробітна плата, лікарняні, вагітності, відрядження, компенсації",363616,Центральний офіс,37413211,Україна,Заробітна плата за 01/2019 (аванс),26003052628485,current,1.45,Горпінченко Діна Олегівна,,фізична особа
ВОЛЯ,м. Стаханiв,84,2019-01-15,190115СТ664310,"Заробітна плата, премії","Заробітна плата, лікарняні, вагітності, відрядження, компенсації",363615,Центральний офіс,37413211,Україна,Заробітна плата за 01/2019 (аванс),26003052628485,current,1.45,Земськов Антон Володимирович,,фізична особа
ВОЛЯ,"м. Київ, просп. Червонозоряний, буд. 51",76,2019-01-14,6,Послуги зв’язку,Послуги зв’язку,363652,Центральний офіс,37413211,Україна,Послуги зв»язку,26003052628485,current,1016.13,"ПрАТ ""Київстар""",21673832,юридична особа
ВОЛЯ,"м. Київ, вул. Володимирська, буд. 69А",70,2019-01-14,1EO1PQ0XBY,Банківські послуги,Інші витрати,363651,Центральний офіс,37413211,Україна,Комісія банку,26003052628485,current,3.00,УДКСУ у Голосіївському районі м. Києва,38039757,юридична особа
ВОЛЯ,"м. Київ, вул. Лейпцизька, буд. 15",76,2019-01-09,5,Послуги зв’язку,Послуги зв’язку,363650,Центральний офіс,37413211,Україна,Послуги зв»язку,26003052628485,current,2807.00,"ПрАТ ""ВФ Україна""",14333937,юридична особа
ВОЛЯ,"м. Київ, просп. Червонозоряний, буд. 51",76,2019-01-09,3,Послуги зв’язку,Послуги зв’язку,363649,Центральний офіс,37413211,Україна,Послуги зв»язку,26003052628485,current,456.00,"ПрАТ ""Київстар""",21673832,юридична особа
ВОЛЯ,"м. Київ, просп. Червонозоряний, буд. 51",76,2019-01-09,4,Послуги зв’язку,Послуги зв’язку,363648,Центральний офіс,37413211,Україна,Послуги зв»язку,26003052628485,current,297.31,"ПрАТ ""Київстар""",21673832,юридична особа
ВОЛЯ,"м. Київ, вул. Володимирська, буд. 69А",70,2019-01-09,19O1PBQSXY,Банківські послуги,Інші витрати,363647,Центральний офіс,37413211,Україна,Комісія банку,26003052628485,current,3.00,УДКСУ у Голосіївському районі м. Києва,38039757,юридична особа
ВОЛЯ,"м. Київ, вул. Володимирська, буд. 69А",70,2019-01-09,19O1PBQSOY,Банківські послуги,Інші витрати,363646,Центральний офіс,37413211,Україна,Комісія банку,26003052628485,current,3.00,УДКСУ у Голосіївському районі м. Києва,38039757,юридична особа
ВОЛЯ,"м. Київ, вул. Володимирська, буд. 69А",70,2019-01-09,19O1PBQSRY,Банківські послуги,Інші витрати,363645,Центральний офіс,37413211,Україна,Комісія банку,26003052628485,current,3.00,УДКСУ у Голосіївському районі м. Києва,38039757,юридична особа
ВОЛЯ,"м. Київ, вул. Здолбунівська, буд. 7Д",76,2019-01-08,2,Послуги зв’язку,Послуги зв’язку,363644,Центральний офіс,37413211,Україна,Послуги зв»язку,26003052628485,current,1645.00,"ТОВ ""Бінотел""",38021032,юридична особа
ВОЛЯ,"м. Прилуки, вул. Гвардійська, буд. 96/32",82,2019-01-04,1,"Гонорари, в тому числі за надані консультаційні послуги","Гонорари, в тому числі за надані консультаційні послуги",363643,Центральний офіс,37413211,Україна,Інф-конс.послуги,26003052628485,current,400.00,Крюкова Н І,2022018988,фізична особа
ВОЛЯ,"м. Київ, вул. Володимирська, буд. 69А",70,2019-01-04,14O1OXOOZY,Банківські послуги,Інші витрати,363642,Центральний офіс,37413211,Україна,Комісія банку,26003052628485,current,3.00,УДКСУ у Голосіївському районі м. Києва,38039757,юридична особа
ВОЛЯ,"м. Київ, вул. Грушевського, буд. 1Д",70,2019-01-03,AN8ct05dnp,Банківські послуги,Інші витрати,363757,Київська міська організація,37716506,Київ,Комісія за РКО,26003052646188,current,100.00,"ПАТ КБ ""Приватбанк""",14360570,юридична особа
ВОЛЯ,"м. Київ, вул. Грушевського, буд. 1Д",70,2019-01-03,AS8ct2g2cp,Банківські послуги,Інші витрати,363641,Центральний офіс,37413211,Україна,Комісія банку,26003052628485,current,100.00,"ПАТ КБ ""Приватбанк""",14360570,юридична особа
